{"text_format":"1","workbook":"xlsx","n_sheets":9,"sheets":["Öğrenci Kayıt","Veli-Öğretmen-İdare","Rapor","Sabitler","AÇIKLAMA","Randevu","RİSKLİ ÖĞRENCİLER","Seminer","VAKA FORMU"],"not_rendered":{"charts":0,"images":0,"macros":0,"external_links":5,"defined_names":74,"comments":6,"pivot_tables":0},"unopened":[],"bounds":{"document_bytes":16777216,"sheet_cells":100000,"rows_first":2000,"rows_last":500,"rows_between":2000,"halvings":0,"cell_chars":16384,"cell_head_chars":4096},"cells_cut":0,"cells_raw":0,"read":"whole","date_system":"1900"}

{"sheet":"Öğrenci Kayıt","index":0,"n_rows":904,"n_cols":16,"rows_kept":904,"cut":false,"hidden":false,"merged":[[1,0,1,9],[0,0,0,9]]}
["PSİKOLOJİK DANIŞMA ve REHBERLİK SERVİSİ  PROGRAMI"]
["(Öğrenci Görüşme - Danışma Kayıtları)"]
["S.N.","Görüş.Tarih ve Saati","Gör. Saati","Başvuru Şekli","Sınıf","Öğrencinin Adı Soyadı","Cins.","Görüşme Türü","Sorun Alanları /                   Çalışma Konusu","Görüşme Özeti - Randevu - Özel Not","Yönlendirme"]
[1,"2018-10-12","10;30","Kendi İsteği","7C",null,"Erkek","Kişisel-Sosyal Rehberlik","Ailevi Konular"]
[2,"2018-10-12","11:30:00","İdare İsteği","6C",null,"Kız","Kişisel-Sosyal Rehberlik","Psikolojik Uyum",null,"HASTANE",null,"Kişisel-Sosyal Rehberlik",{"$f":"COUNTIF(H4:H904,\"Kişisel-Sosyal Rehberlik\")","v":22}]
[3,"2018-10-12",null,"Öğretmen İsteği","6B",null,"Kız","Kişisel-Sosyal Rehberlik","Psikolojik Uyum",null,"HASTANE",null,"Bireysel Psiko.Danışma",{"$f":"COUNTIF(H4:H904,\"Bireysel Psiko.Danışma\")","v":1},null,"Kız"]
[4,"2018-10-12",null,"Kendi İsteği","7B",null,"Kız","Eğitsel Rehberlik","Akademik Konular",null,null,null,"Eğitsel Rehberlik",{"$f":"COUNTIF(H4:H904,\"Eğitsel Rehberlik\")","v":46},null,"Erkek"]
[5,"2018-10-12",null,"Kendi İsteği","7B",null,"Kız","Eğitsel Rehberlik","Akademik Konular",null,null,null,"Mesleki Rehberlik",{"$f":"COUNTIF(H4:H904,\"Mesleki Rehberlik\")","v":0}]
[6,"2018-10-12",null,"Kendi İsteği","7B",null,"Kız","Eğitsel Rehberlik","Akademik Konular",null,null,null,"Grupla Psiko.Danışma",{"$f":"COUNTIF(H4:H904,\"Grupla Psiko.Danışma\")","v":1}]
[7,"2018-10-12",null,"Kendi İsteği","7B",null,"Erkek","Eğitsel Rehberlik","Akademik Konular"]
[8,"2018-10-12",null,"Kendi İsteği","7B",null,"Kız","Eğitsel Rehberlik","Akademik Konular",null,null,null,null,"Kız","Erkek"]
[9,null,null,"Kendi İsteği","7B",null,"Kız","Eğitsel Rehberlik","Akademik Konular",null,null,null,"Yöneltme Yerleştirme",{"$f":"SUMPRODUCT((G4:G904=\"Kız\")*(I4:I904=\"Yöneltme Yerleştirme\"))","v":0},{"$f":"SUMPRODUCT((G4:G904=\"Erkek\")*(I4:I904=\"Yöneltme Yerleştirme\"))","v":0}]
[10,null,null,"İdare İsteği","7C",null,"Erkek","Kişisel-Sosyal Rehberlik","Davranış Sorunları",null,null,null,"Okul ve Çevreye Uyum",{"$f":"SUMPRODUCT((G4:G904=\"Kız\")*(I4:I904=\"Okul ve Çevreye Uyum\"))","v":0},{"$f":"SUMPRODUCT((G4:G904=\"Erkek\")*(I4:I904=\"Okul ve Çevreye Uyum\"))","v":1}]
[11,null,null,"İdare İsteği","7B",null,"Erkek","Kişisel-Sosyal Rehberlik","Davranış Sorunları",null,null,null,"Sağlık ile ilgili Konular",{"$f":"SUMPRODUCT((G4:G904=\"Kız\")*(I4:I904=\"Sağlık ile ilgili Konular\"))","v":1},{"$f":"SUMPRODUCT((G4:G904=\"Erkek\")*(I4:I904=\"Sağlık ile ilgili Konular\"))","v":0}]
[12,null,null,"Öğretmen İsteği","7A",null,"Erkek","Eğitsel Rehberlik","Akademik Konular",null,null,null,"Akademik Konular",{"$f":"SUMPRODUCT((G4:G904=\"Kız\")*(I4:I904=\"Akademik Konular\"))","v":23},{"$f":"SUMPRODUCT((G4:G904=\"Erkek\")*(I4:I904=\"Akademik Konular\"))","v":23}]
[13,null,null,"Kendi İsteği","7C",null,"Kız","Eğitsel Rehberlik","Akademik Konular",null,null,null,"Ailevi Konular",{"$f":"SUMPRODUCT((G4:G904=\"Kız\")*(I4:I904=\"Ailevi Konular\"))","v":3},{"$f":"SUMPRODUCT((G4:G904=\"Erkek\")*(I4:I904=\"Ailevi Konular\"))","v":8}]
[14,null,null,"Kendi İsteği","7C",null,"Kız","Eğitsel Rehberlik","Akademik Konular",null,null,null,"Psikolojik Uyum",{"$f":"SUMPRODUCT((G4:G904=\"Kız\")*(I4:I904=\"Psikolojik Uyum\"))","v":8},{"$f":"SUMPRODUCT((G4:G904=\"Erkek\")*(I4:I904=\"Psikolojik Uyum\"))","v":1}]
[15,null,null,"Kendi İsteği","6B",null,"Kız","Eğitsel Rehberlik","Akademik Konular",null,null,null,"Davranış Sorunları",{"$f":"SUMPRODUCT((G4:G904=\"Kız\")*(I4:I904=\"Davranış Sorunları\"))","v":0},{"$f":"SUMPRODUCT((G4:G904=\"Erkek\")*(I4:I904=\"Davranış Sorunları\"))","v":2}]
[16,null,null,"Kendi İsteği","6B",null,"Kız","Eğitsel Rehberlik","Akademik Konular",null,null,null,"Sosyo-Eko. Konular",{"$f":"SUMPRODUCT((G4:G904=\"Kız\")*(I4:I904=\"Sosyo-Eko. Konular\"))","v":0},{"$f":"SUMPRODUCT((G4:G904=\"Erkek\")*(I4:I904=\"Sosyo-Eko. Konular\"))","v":0}]
[17,null,null,"Kendi İsteği","6B",null,"Kız","Eğitsel Rehberlik","Akademik Konular",null,null,null,"Diğer Konular",{"$f":"SUMPRODUCT((G4:G904=\"Kız\")*(I4:I904=\"Diğer Konular\"))","v":0},{"$f":"SUMPRODUCT((G4:G904=\"Erkek\")*(I4:I904=\"Diğer Konular\"))","v":0}]
[18,null,null,"Kendi İsteği","6A",null,"Kız","Eğitsel Rehberlik","Akademik Konular",null,null,null,"Sosyal Uyum",{"$f":"SUMPRODUCT((G4:G904=\"Kız\")*(I4:I904=\"Sosyal Uyum\"))","v":0},{"$f":"SUMPRODUCT((G5:G905=\"Erkek\")*(I5:I905=\"Sosyal Uyum\"))","v":0}]
[19,null,null,"Kendi İsteği","6A",null,"Kız","Eğitsel Rehberlik","Akademik Konular",null,null,null,"Şubeler","Kız","Erkek","Toplam"]
[20,null,null,"Öğretmen İsteği","7A",null,"Erkek","Eğitsel Rehberlik","Akademik Konular",null,"REHBERLİK ARŞ. MERKEZİ",null,{"$f":"IF(Sabitler!A3=\"\",\"BOS\",Sabitler!A3)","v":"8A"},{"$f":"SUMPRODUCT((G4:G904=\"Kız\")*(E4:I904=M23))","v":6},{"$f":"SUMPRODUCT((G4:G904=\"Erkek\")*(E4:I904=M23))","v":5},{"$f":"SUM(N23:O23)","v":11}]
[21,null,null,"Veli İsteği","7C",null,"Kız","Kişisel-Sosyal Rehberlik","Psikolojik Uyum",null,null,null,{"$f":"IF(Sabitler!A4=\"\",\"BOS\",Sabitler!A4)","v":"8B"},{"$f":"SUMPRODUCT((G4:G904=\"Kız\")*(E4:I904=M24))","v":0},{"$f":"SUMPRODUCT((G4:G904=\"Erkek\")*(E4:I904=M24))","v":1},{"$f":"SUM(N24:O24)","v":1}]
[22,null,null,"Kendi İsteği","8A",null,"Kız","Eğitsel Rehberlik","Akademik Konular",null,null,null,{"$f":"IF(Sabitler!A5=\"\",\"BOS\",Sabitler!A5)","v":"8C"},{"$f":"SUMPRODUCT((G4:G904=\"Kız\")*(E4:I904=M25))","v":0},{"$f":"SUMPRODUCT((G4:G904=\"Erkek\")*(E4:I904=M25))","v":0},0]
[23,null,null,"Kendi İsteği","7B",null,"Erkek","Eğitsel Rehberlik","Akademik Konular",null,null,null,{"$f":"IF(Sabitler!A6=\"\",\"BOS\",Sabitler!A6)","v":"8D"},{"$f":"SUMPRODUCT((G4:G904=\"Kız\")*(E4:I904=M26))","v":0},{"$f":"SUMPRODUCT((G4:G904=\"Erkek\")*(E4:I904=M26))","v":0},0]
[24,null,null,"Kendi İsteği","7B",null,"Erkek","Eğitsel Rehberlik","Akademik Konular",null,null,null,{"$f":"IF(Sabitler!A7=\"\",\"BOS\",Sabitler!A7)","v":"7A"},{"$f":"SUMPRODUCT((G4:G904=\"Kız\")*(E4:I904=M27))","v":1},{"$f":"SUMPRODUCT((G4:G904=\"Erkek\")*(E4:I904=M27))","v":12},13]
[25,null,null,"Kendi İsteği","8A",null,"Kız","Eğitsel Rehberlik","Akademik Konular",null,null,null,{"$f":"IF(Sabitler!A8=\"\",\"BOS\",Sabitler!A8)","v":"7B"},{"$f":"SUMPRODUCT((G4:G904=\"Kız\")*(E4:I904=M28))","v":5},{"$f":"SUMPRODUCT((G4:G904=\"Erkek\")*(E4:I904=M28))","v":6},11]
[26,null,null,"Kendi İsteği","8A",null,"Kız","Eğitsel Rehberlik","Akademik Konular",null,null,null,{"$f":"IF(Sabitler!A9=\"\",\"BOS\",Sabitler!A9)","v":"7C"},{"$f":"SUMPRODUCT((G4:G904=\"Kız\")*(E4:I904=M29))","v":6},{"$f":"SUMPRODUCT((G4:G904=\"Erkek\")*(E4:I904=M29))","v":3},9]
[27,null,null,"Kendi İsteği","8A",null,"Kız","Eğitsel Rehberlik","Akademik Konular",null,null,null,{"$f":"IF(Sabitler!A10=\"\",\"BOS\",Sabitler!A10)","v":"7D"},{"$f":"SUMPRODUCT((G4:G904=\"Kız\")*(E4:I904=M30))","v":0},{"$f":"SUMPRODUCT((G4:G904=\"Erkek\")*(E4:I904=M30))","v":0},0]
[28,null,null,"Öğretmen İsteği","7A",null,"Erkek","Eğitsel Rehberlik","Akademik Konular",null,null,null,{"$f":"IF(Sabitler!A11=\"\",\"BOS\",Sabitler!A11)","v":"6A"},{"$f":"SUMPRODUCT((G4:G904=\"Kız\")*(E4:I904=M31))","v":2},{"$f":"SUMPRODUCT((G4:G904=\"Erkek\")*(E4:I904=M31))","v":1},3]
[29,null,null,"Veli İsteği","7C",null,"Kız","Bireysel Psiko.Danışma","Psikolojik Uyum",null,"HASTANE",null,{"$f":"IF(Sabitler!A12=\"\",\"BOS\",Sabitler!A12)","v":"6B"},{"$f":"SUMPRODUCT((G4:G904=\"Kız\")*(E4:I904=M32))","v":6},{"$f":"SUMPRODUCT((G4:G904=\"Erkek\")*(E4:I904=M32))","v":2},8]
[30,null,null,"Öğretmen İsteği","7A",null,"Kız","Kişisel-Sosyal Rehberlik","Psikolojik Uyum",null,null,null,{"$f":"IF(Sabitler!A13=\"\",\"BOS\",Sabitler!A13)","v":"6C"},{"$f":"SUMPRODUCT((G4:G904=\"Kız\")*(E4:I904=M33))","v":2},{"$f":"SUMPRODUCT((G4:G904=\"Erkek\")*(E4:I904=M33))","v":1},3]
[31,null,null,"Kendi İsteği","7A",null,"Erkek","Eğitsel Rehberlik","Akademik Konular",null,"HASTANE",null,{"$f":"IF(Sabitler!A14=\"\",\"BOS\",Sabitler!A14)","v":"6D"},{"$f":"SUMPRODUCT((G4:G904=\"Kız\")*(E4:I904=M34))","v":0},{"$f":"SUMPRODUCT((G4:G904=\"Erkek\")*(E4:I904=M34))","v":0},0]
[32,null,null,"Kendi İsteği","7A",null,"Erkek","Eğitsel Rehberlik","Akademik Konular",null,null,null,{"$f":"IF(Sabitler!A15=\"\",\"BOS\",Sabitler!A15)","v":"5A"},{"$f":"SUMPRODUCT((G4:G904=\"Kız\")*(E4:I904=M35))","v":6},{"$f":"SUMPRODUCT((G4:G904=\"Erkek\")*(E4:I904=M35))","v":4},10]
[33,null,null,"Kendi İsteği","7A",null,"Erkek","Eğitsel Rehberlik","Akademik Konular",null,null,null,{"$f":"IF(Sabitler!A16=\"\",\"BOS\",Sabitler!A16)","v":"5B"},{"$f":"SUMPRODUCT((G4:G904=\"Kız\")*(E4:I904=M36))","v":1},{"$f":"SUMPRODUCT((G4:G904=\"Erkek\")*(E4:I904=M36))","v":0},1]
[34,null,null,"Öğretmen İsteği","7B",null,"Erkek","Kişisel-Sosyal Rehberlik","Ailevi Konular",null,null,null,{"$f":"IF(Sabitler!A17=\"\",\"BOS\",Sabitler!A17)","v":"5C"},{"$f":"SUMPRODUCT((G4:G904=\"Kız\")*(E4:I904=M37))","v":0},{"$f":"SUMPRODUCT((G4:G904=\"Erkek\")*(E4:I904=M37))","v":0},0]
[35,null,null,"Kendi İsteği","7B",null,"Erkek","Eğitsel Rehberlik","Akademik Konular",null,null,null,{"$f":"IF(Sabitler!A18=\"\",\"BOS\",Sabitler!A18)","v":"BOS"},{"$f":"SUMPRODUCT((G4:G904=\"Kız\")*(E4:I904=M38))","v":0},{"$f":"SUMPRODUCT((G4:G904=\"Erkek\")*(E4:I904=M38))","v":0},0]
[36,null,null,"Kendi İsteği","7A",null,"Erkek","Kişisel-Sosyal Rehberlik","Okul ve Çevreye Uyum",null,null,null,{"$f":"IF(Sabitler!A19=\"\",\"BOS\",Sabitler!A19)","v":"BOS"},{"$f":"SUMPRODUCT((G4:G904=\"Kız\")*(E4:I904=M39))","v":0},{"$f":"SUMPRODUCT((G4:G904=\"Erkek\")*(E4:I904=M39))","v":0},0]
[37,null,null,"Öğretmen İsteği","8A",null,"Erkek","Kişisel-Sosyal Rehberlik","Ailevi Konular",null,null,null,{"$f":"IF(Sabitler!A20=\"\",\"BOS\",Sabitler!A20)","v":"BOS"},{"$f":"SUMPRODUCT((G4:G904=\"Kız\")*(E4:I904=M41))","v":0},{"$f":"SUMPRODUCT((G4:G904=\"Erkek\")*(E4:I904=M41))","v":0},0]
[38,null,null,"Kendi İsteği","7A",null,"Erkek","Eğitsel Rehberlik","Akademik Konular",null,null,null,{"$f":"IF(Sabitler!A21=\"\",\"BOS\",Sabitler!A21)","v":"BOS"},{"$f":"SUMPRODUCT((G4:G904=\"Kız\")*(E4:I904=M42))","v":0},{"$f":"SUMPRODUCT((G4:G904=\"Erkek\")*(E4:I904=M42))","v":0},0]
[39,null,null,"Veli İsteği","6A",null,"Erkek","Eğitsel Rehberlik","Akademik Konular",null,null,null,{"$f":"IF(Sabitler!A22=\"\",\"BOS\",Sabitler!A22)","v":"BOS"},{"$f":"SUMPRODUCT((G4:G904=\"Kız\")*(E4:I904=M42))","v":0},{"$f":"SUMPRODUCT((G4:G904=\"Erkek\")*(E4:I904=M42))","v":0},0]
[40,null,null,"Öğretmen İsteği","6B",null,"Kız","Kişisel-Sosyal Rehberlik","Ailevi Konular",null,null,null,{"$f":"IF(Sabitler!A23=\"\",\"BOS\",Sabitler!A23)","v":"BOS"},{"$f":"SUMPRODUCT((G4:G904=\"Kız\")*(E4:I904=M43))","v":0},{"$f":"SUMPRODUCT((G4:G904=\"Erkek\")*(E4:I904=M43))","v":0},0]
[41,null,null,"Öğretmen İsteği","6B",null,"Erkek","Kişisel-Sosyal Rehberlik","Ailevi Konular",null,null,null,{"$f":"IF(Sabitler!A24=\"\",\"BOS\",Sabitler!A24)","v":"BOS"},{"$f":"SUMPRODUCT((G4:G904=\"Kız\")*(E4:I904=M44))","v":0},{"$f":"SUMPRODUCT((G4:G904=\"Erkek\")*(E4:I904=M44))","v":0},0]
[42,null,null,"Öğretmen İsteği","7A",null,"Erkek","Kişisel-Sosyal Rehberlik","Akademik Konular",null,null,null,{"$f":"IF(Sabitler!A25=\"\",\"BOS\",Sabitler!A25)","v":"BOS"},{"$f":"SUMPRODUCT((G4:G904=\"Kız\")*(E4:I904=M45))","v":0},{"$f":"SUMPRODUCT((G4:G904=\"Erkek\")*(E4:I904=M45))","v":0},0]
[43,null,null,"Öğretmen İsteği","5A",null,"Kız","Kişisel-Sosyal Rehberlik","Ailevi Konular",null,null,null,{"$f":"IF(Sabitler!A26=\"\",\"BOS\",Sabitler!A26)","v":"BOS"},{"$f":"SUMPRODUCT((G4:G904=\"Kız\")*(E4:I904=M46))","v":0},{"$f":"SUMPRODUCT((G4:G904=\"Erkek\")*(E4:I904=M46))","v":0},0]
[44,null,null,"Öğretmen İsteği","5A",null,"Kız","Eğitsel Rehberlik","Akademik Konular",null,null,null,{"$f":"IF(Sabitler!A27=\"\",\"BOS\",Sabitler!A27)","v":"BOS"},{"$f":"SUMPRODUCT((G4:G904=\"Kız\")*(E4:I904=M47))","v":0},{"$f":"SUMPRODUCT((G4:G904=\"Erkek\")*(E4:I904=M47))","v":0},0]
[45,null,null,"Öğretmen İsteği","8B",null,"Erkek","Kişisel-Sosyal Rehberlik","Ailevi Konular",null,null,null,{"$f":"IF(Sabitler!A28=\"\",\"BOS\",Sabitler!A28)","v":"BOS"},{"$f":"SUMPRODUCT((G4:G904=\"Kız\")*(E4:I904=M48))","v":0},{"$f":"SUMPRODUCT((G4:G904=\"Erkek\")*(E4:I904=M48))","v":0},0]
[46,null,null,"Öğretmen İsteği","8A",null,"Kız","Kişisel-Sosyal Rehberlik","Ailevi Konular",null,null,null,{"$f":"IF(Sabitler!A29=\"\",\"BOS\",Sabitler!A29)","v":"BOS"},{"$f":"SUMPRODUCT((G4:G904=\"Kız\")*(E4:I904=M49))","v":0},{"$f":"SUMPRODUCT((G4:G904=\"Erkek\")*(E4:I904=M49))","v":0},0]
[47,null,null,"Öğretmen İsteği","7C",null,"Erkek","Kişisel-Sosyal Rehberlik","Akademik Konular",null,null,null,{"$f":"IF(Sabitler!A30=\"\",\"BOS\",Sabitler!A30)","v":"BOS"},{"$f":"SUMPRODUCT((G4:G904=\"Kız\")*(E4:I904=M50))","v":0},{"$f":"SUMPRODUCT((G4:G904=\"Erkek\")*(E4:I904=M50))","v":0},0]
[48,null,null,"Öğretmen İsteği","7A",null,"Erkek","Kişisel-Sosyal Rehberlik","Ailevi Konular",null,null,null,{"$f":"IF(Sabitler!A31=\"\",\"BOS\",Sabitler!A31)","v":"BOS"},{"$f":"SUMPRODUCT((G4:G904=\"Kız\")*(E4:I904=M51))","v":0},{"$f":"SUMPRODUCT((G4:G904=\"Erkek\")*(E4:I904=M51))","v":0},0]
[49,null,null,"Öğretmen İsteği","6B",null,"Kız","Kişisel-Sosyal Rehberlik","Psikolojik Uyum",null,"HASTANE",null,"TOPLAM",{"$f":"SUM(N23:N51)","v":35},{"$f":"SUM(O23:O51)","v":35},70]
[50,null,null,"Öğretmen İsteği","8A",null,"Erkek","Kişisel-Sosyal Rehberlik","Ailevi Konular"]
[51,null,null,"Öğretmen İsteği","8A",null,"Erkek","Kişisel-Sosyal Rehberlik","Ailevi Konular",null,null,null,null,"HASTANE",{"$f":"COUNTIF(K4:K303,\"HASTANE\")","v":7}]
[52,null,null,"Öğretmen İsteği","6C",null,"Erkek","Eğitsel Rehberlik","Akademik Konular",null,null,null,null,"ASPİM-CİM-EÇŞM",{"$f":"COUNTIF(K4:K303,\"ASPİM-CİM-EÇŞM\")","v":0}]
[53,null,null,"Öğretmen İsteği","7C",null,"Kız","Eğitsel Rehberlik","Psikolojik Uyum",null,"HASTANE",null,null,"Diğer-STK vb",{"$f":"COUNTIF(K4:K303,\"Diğer-STK vb\")","v":0}]
[54,null,null,"Kendi İsteği","5B",null,"Kız","Eğitsel Rehberlik","Akademik Konular",null,null,null,null,"REHBERLİK ARŞ. MERKEZİ",{"$f":"COUNTIF(K4:K303,\"REHBERLİK ARŞ. MERKEZİ\")","v":1}]
[55,null,null,"Kendi İsteği","8A",null,"Kız","Eğitsel Rehberlik","Akademik Konular"]
[56,null,null,"Öğretmen İsteği","6C",null,"Kız","Kişisel-Sosyal Rehberlik","Sağlık ile ilgili Konular",null,"HASTANE",null,null,"Veli İsteği",{"$f":"COUNTIF(D4:D303,\"Veli İsteği\")","v":4}]
[57,null,null,"Kendi İsteği","7A",null,"Erkek","Eğitsel Rehberlik","Akademik Konular",null,null,null,null,"Kendi İsteği",{"$f":"COUNTIF(D4:D303,\"Kendi İsteği\")","v":37}]
[58,null,null,"Öğretmen İsteği","7C",null,"Kız","Grupla Psiko.Danışma","Psikolojik Uyum",null,null,null,null,"İdare İsteği",{"$f":"COUNTIF(D4:D303,\"İdare İsteği\")","v":4}]
[59,null,null,"Veli İsteği","7A",null,"Erkek","Eğitsel Rehberlik","Akademik Konular",null,null,null,null,"Öğretmen İsteği",{"$f":"COUNTIF(D4:D303,\"Öğretmen İsteği\")","v":24}]
[60,null,null,"Kendi İsteği","8A",null,"Erkek","Eğitsel Rehberlik","Akademik Konular",null,null,null,null,"Diğer",{"$f":"COUNTIF(D4:D303,\"Diğer\")","v":1}]
[61,null,null,"Öğretmen İsteği","6B",null,"Erkek","Eğitsel Rehberlik","Akademik Konular"]
[62,null,null,"Kendi İsteği","5A",null,"Erkek","Eğitsel Rehberlik","Akademik Konular"]
[63,null,null,"Kendi İsteği","5A",null,"Erkek","Eğitsel Rehberlik","Akademik Konular"]
[64,null,null,"Kendi İsteği","5A",null,"Erkek","Eğitsel Rehberlik","Akademik Konular"]
[65,null,null,"Kendi İsteği","5A",null,"Kız","Eğitsel Rehberlik","Akademik Konular"]
[66,null,null,"Kendi İsteği","5A",null,"Kız","Eğitsel Rehberlik","Akademik Konular"]
[67,null,null,"İdare İsteği","8A",null,"Erkek","Eğitsel Rehberlik","Psikolojik Uyum"]
[68,null,null,"Diğer","5A",null,"Kız","Eğitsel Rehberlik","Akademik Konular"]
[69,null,null,"Kendi İsteği","5A",null,"Kız","Eğitsel Rehberlik","Akademik Konular"]
[70,null,null,"Kendi İsteği","5A",null,"Erkek","Eğitsel Rehberlik","Akademik Konular"]
[71]
[72]
[73]
[74]
[75]
[76]
[77]
[78]
[79]
[80]
[81]
[82]
[83]
[84]
[85]
[86]
[87]
[88]
[89]
[90]
[91]
[92]
[93]
[94]
[95]
[96]
[97]
[98]
[99]
[100]
[101]
[102]
[103]
[104]
[105]
[106]
[107]
[108]
[109]
[110]
[111]
[112]
[113]
[114]
[115]
[116]
[117]
[118]
[119]
[120]
[121]
[122]
[123]
[124]
[125]
[126]
[127]
[128]
[129]
[130]
[131]
[132]
[133]
[134]
[135]
[136]
[137]
[138]
[139]
[140]
[141]
[142]
[143]
[144]
[145]
[146]
[147]
[148]
[149]
[150]
[151]
[152]
[153]
[154]
[155]
[156]
[157]
[158]
[159]
[160]
[161]
[162]
[163]
[164]
[165]
[166]
[167]
[168]
[169]
[170]
[171]
[172]
[173]
[174]
[175]
[176]
[177]
[178]
[179]
[180]
[181]
[182]
[183]
[184]
[185]
[186]
[187]
[188]
[189]
[190]
[191]
[192]
[193]
[194]
[195]
[196]
[197]
[198]
[199]
[200]
[201]
[202]
[203]
[204]
[205]
[206]
[207]
[208]
[209]
[210]
[211]
[212]
[213]
[214]
[215]
[216]
[217]
[218]
[219]
[220]
[221]
[222]
[223]
[224]
[225]
[226]
[227]
[228]
[229]
[230]
[231]
[232]
[233]
[234]
[235]
[236]
[237]
[238]
[239]
[240]
[241]
[242]
[243]
[244]
[245]
[246]
[247]
[248]
[249]
[250]
[251]
[252]
[253]
[254]
[255]
[256]
[257]
[258]
[259]
[260]
[261]
[262]
[263]
[264]
[265]
[266]
[267]
[268]
[269]
[270]
[271]
[272]
[273]
[274]
[275]
[276]
[277]
[278]
[279]
[280]
[281]
[282]
[283]
[284]
[285]
[286]
[287]
[288]
[289]
[290]
[291]
[292]
[293]
[294]
[295]
[296]
[297]
[298]
[299]
[300]
[301]
[302]
[303]
[304]
[305]
[306]
[307]
[308]
[309]
[310]
[311]
[312]
[313]
[314]
[315]
[316]
[317]
[318]
[319]
[320]
[321]
[322]
[323]
[324]
[325]
[326]
[327]
[328]
[329]
[330]
[331]
[332]
[333]
[334]
[335]
[336]
[337]
[338]
[339]
[340]
[341]
[342]
[343]
[344]
[345]
[346]
[347]
[348]
[349]
[350]
[351]
[352]
[353]
[354]
[355]
[356]
[357]
[358]
[359]
[360]
[361]
[362]
[363]
[364]
[365]
[366]
[367]
[368]
[369]
[370]
[371]
[372]
[373]
[374]
[375]
[376]
[377]
[378]
[379]
[380]
[381]
[382]
[383]
[384]
[385]
[386]
[387]
[388]
[389]
[390]
[391]
[392]
[393]
[394]
[395]
[396]
[397]
[398]
[399]
[400]
[401]
[402]
[403]
[404]
[405]
[406]
[407]
[408]
[409]
[410]
[411]
[412]
[413]
[414]
[415]
[416]
[417]
[418]
[419]
[420]
[421]
[422]
[423]
[424]
[425]
[426]
[427]
[428]
[429]
[430]
[431]
[432]
[433]
[434]
[435]
[436]
[437]
[438]
[439]
[440]
[441]
[442]
[443]
[444]
[445]
[446]
[447]
[448]
[449]
[450]
[451]
[452]
[453]
[454]
[455]
[456]
[457]
[458]
[459]
[460]
[461]
[462]
[463]
[464]
[465]
[466]
[467]
[468]
[469]
[470]
[471]
[472]
[473]
[474]
[475]
[476]
[477]
[478]
[479]
[480]
[481]
[482]
[483]
[484]
[485]
[486]
[487]
[488]
[489]
[490]
[491]
[492]
[493]
[494]
[495]
[496]
[497]
[498]
[499]
[500]
[501]
[502]
[503]
[504]
[505]
[506]
[507]
[508]
[509]
[510]
[511]
[512]
[513]
[514]
[515]
[516]
[517]
[518]
[519]
[520]
[521]
[522]
[523]
[524]
[525]
[526]
[527]
[528]
[529]
[530]
[531]
[532]
[533]
[534]
[535]
[536]
[537]
[538]
[539]
[540]
[541]
[542]
[543]
[544]
[545]
[546]
[547]
[548]
[549]
[550]
[551]
[552]
[553]
[554]
[555]
[556]
[557]
[558]
[559]
[560]
[561]
[562]
[563]
[564]
[565]
[566]
[567]
[568]
[569]
[570]
[571]
[572]
[573]
[574]
[575]
[576]
[577]
[578]
[579]
[580]
[581]
[582]
[583]
[584]
[585]
[586]
[587]
[588]
[589]
[590]
[591]
[592]
[593]
[594]
[595]
[596]
[597]
[598]
[599]
[600]
[601]
[602]
[603]
[604]
[605]
[606]
[607]
[608]
[609]
[610]
[611]
[612]
[613]
[614]
[615]
[616]
[617]
[618]
[619]
[620]
[621]
[622]
[623]
[624]
[625]
[626]
[627]
[628]
[629]
[630]
[631]
[632]
[633]
[634]
[635]
[636]
[637]
[638]
[639]
[640]
[641]
[642]
[643]
[644]
[645]
[646]
[647]
[648]
[649]
[650]
[651]
[652]
[653]
[654]
[655]
[656]
[657]
[658]
[659]
[660]
[661]
[662]
[663]
[664]
[665]
[666]
[667]
[668]
[669]
[670]
[671]
[672]
[673]
[674]
[675]
[676]
[677]
[678]
[679]
[680]
[681]
[682]
[683]
[684]
[685]
[686]
[687]
[688]
[689]
[690]
[691]
[692]
[693]
[694]
[695]
[696]
[697]
[698]
[699]
[700]
[701]
[702]
[703]
[704]
[705]
[706]
[707]
[708]
[709]
[710]
[711]
[712]
[713]
[714]
[715]
[716]
[717]
[718]
[719]
[720]
[721]
[722]
[723]
[724]
[725]
[726]
[727]
[728]
[729]
[730]
[731]
[732]
[733]
[734]
[735]
[736]
[737]
[738]
[739]
[740]
[741]
[742]
[743]
[744]
[745]
[746]
[747]
[748]
[749]
[750]
[751]
[752]
[753]
[754]
[755]
[756]
[757]
[758]
[759]
[760]
[761]
[762]
[763]
[764]
[765]
[766]
[767]
[768]
[769]
[770]
[771]
[772]
[773]
[774]
[775]
[776]
[777]
[778]
[779]
[780]
[781]
[782]
[783]
[784]
[785]
[786]
[787]
[788]
[789]
[790]
[791]
[792]
[793]
[794]
[795]
[796]
[797]
[798]
[799]
[800]
[801]
[802]
[803]
[804]
[805]
[806]
[807]
[808]
[809]
[810]
[811]
[812]
[813]
[814]
[815]
[816]
[817]
[818]
[819]
[820]
[821]
[822]
[823]
[824]
[825]
[826]
[827]
[828]
[829]
[830]
[831]
[832]
[833]
[834]
[835]
[836]
[837]
[838]
[839]
[840]
[841]
[842]
[843]
[844]
[845]
[846]
[847]
[848]
[849]
[850]
[851]
[852]
[853]
[854]
[855]
[856]
[857]
[858]
[859]
[860]
[861]
[862]
[863]
[864]
[865]
[866]
[867]
[868]
[869]
[870]
[871]
[872]
[873]
[874]
[875]
[876]
[877]
[878]
[879]
[880]
[881]
[882]
[883]
[884]
[885]
[886]
[887]
[888]
[889]
[890]
[891]
[892]
[893]
[894]
[895]
[896]
[897]
[898]
[899]
[900]
[901]

{"sheet":"Veli-Öğretmen-İdare","index":1,"n_rows":303,"n_cols":15,"rows_kept":303,"cut":false,"hidden":false,"merged":[[0,0,0,8],[1,0,1,8]]}
["PSİKOLOJİK DANIŞMA ve REHBERLİK SERVİSİ PROGRAMI"]
["(Veli - Öğretmen - Müşavirlik- Diğer Görüşmeler)"]
["S.N.","Tarih","Saati","Öğr. No","Sınıf","Öğrencinin                          Adı Soyadı","Görüşülen Veli - Öğretmen - Diğer-               Adı Soyadı","Görüşülen","Beklenti - Yapılan Çalışmanın Özeti -  Randevu                                                                                     Varsa Özel Not- Görüşmenin Değerlendirilmesi","Yönlendirme"]
[1,"2018-10-10","10;00",null,"6B",null,null,"Veli",null,"HASTANE","Veli Ziyareti",{"$f":"COUNTIF(H4:H303,\"Veli Ziyareti\")","v":1}]
[2,"2018-10-19","09;00",null,"6B",null,null,"Veli",null,"HASTANE","Veli",{"$f":"COUNTIF(H4:H303,\"Veli\")","v":9}]
[3,"2018-11-07","12;40",null,"7A",null,null,"Veli Ziyareti",null,null,"Öğretmen",{"$f":"COUNTIF(H4:H303,\"Öğretmen\")","v":1}]
[4,"2018-11-09","11;40",null,"7C",null,null,"Veli",null,"HASTANE","İdare",{"$f":"COUNTIF(H4:H303,\"İdare\")","v":1}]
[5,"2018-11-12","10;00",null,"7A",null,null,"Veli",null,"REHBERLİK ARŞ. MERKEZİ","Diğer",{"$f":"COUNTIF(H4:H303,\"Diğer\")","v":1}]
[6,"2018-11-13","13;00",null,"7A",null,null,"Veli",null,"HASTANE","Müşavirlik",{"$f":"COUNTIF(H4:H303,\"Müşavirlik\")","v":2}]
[7,"2018-11-16","13;00",null,"6A",null,null,"Veli"]
[8,"2018-11-29","11;00",null,"7C",null,null,"Veli",null,null,"Şubeler","Veli","Öğretmen","İdare","Diğer"]
[9,"2018-11-30","11;00",null,"6C",null,null,"Müşavirlik",null,null,{"$f":"IF(Sabitler!A3=\"\",\"BOS\",Sabitler!A3)","v":"8A"},{"$f":"SUMPRODUCT((E4:E303=K12)*(H4:H303=\"Veli\"))","v":0},{"$f":"SUMPRODUCT((E4:E303=K12)*(H4:H303=\"Öğretmen\"))","v":0},{"$f":"SUMPRODUCT((E4:E303=K12)*(H4:H303=\"İdare\"))","v":0},{"$f":"SUMPRODUCT((E4:E303=K12)*(H4:H303=\"Diğer\"))","v":0}]
[10,"2018-12-10","09;00",null,"6B",null,null,"Veli",null,"HASTANE",{"$f":"IF(Sabitler!A4=\"\",\"BOS\",Sabitler!A4)","v":"8B"},{"$f":"SUMPRODUCT((E4:E303=K13)*(H4:H303=\"Veli\"))","v":0},{"$f":"SUMPRODUCT((E4:E303=K13)*(H4:H303=\"Öğretmen\"))","v":0},{"$f":"SUMPRODUCT((E4:E303=K13)*(H4:H303=\"İdare\"))","v":0},{"$f":"SUMPRODUCT((E4:E303=K13)*(H4:H303=\"Diğer\"))","v":0}]
[11,"2018-12-10","09;30",null,"5B",null,null,"Veli",null,"HASTANE",{"$f":"IF(Sabitler!A5=\"\",\"BOS\",Sabitler!A5)","v":"8C"},{"$f":"SUMPRODUCT((E4:E303=K14)*(H4:H303=\"Veli\"))","v":0},{"$f":"SUMPRODUCT((E4:E303=K14)*(H4:H303=\"Öğretmen\"))","v":0},{"$f":"SUMPRODUCT((E4:E303=K14)*(H4:H303=\"İdare\"))","v":0},{"$f":"SUMPRODUCT((E4:E303=K14)*(H4:H303=\"Diğer\"))","v":0}]
[12,"2018-12-10","10;30",null,"5B",null,null,"Öğretmen",null,null,{"$f":"IF(Sabitler!A6=\"\",\"BOS\",Sabitler!A6)","v":"8D"},{"$f":"SUMPRODUCT((E4:E303=K15)*(H4:H303=\"Veli\"))","v":0},{"$f":"SUMPRODUCT((E4:E303=K15)*(H4:H303=\"Öğretmen\"))","v":0},{"$f":"SUMPRODUCT((E4:E303=K15)*(H4:H303=\"İdare\"))","v":0},{"$f":"SUMPRODUCT((E4:E303=K15)*(H4:H303=\"Diğer\"))","v":0}]
[13,"2018-12-10","11;00",null,"5A",null,null,"Diğer",null,null,{"$f":"IF(Sabitler!A7=\"\",\"BOS\",Sabitler!A7)","v":"7A"},{"$f":"SUMPRODUCT((E4:E303=K16)*(H4:H303=\"Veli\"))","v":2},{"$f":"SUMPRODUCT((E4:E303=K16)*(H4:H303=\"Öğretmen\"))","v":0},{"$f":"SUMPRODUCT((E4:E303=K16)*(H4:H303=\"İdare\"))","v":0},{"$f":"SUMPRODUCT((E4:E303=K16)*(H4:H303=\"Diğer\"))","v":0}]
[14,"2018-12-11","12;30",null,null,null,null,"Müşavirlik",null,"HASTANE",{"$f":"IF(Sabitler!A8=\"\",\"BOS\",Sabitler!A8)","v":"7B"},{"$f":"SUMPRODUCT((E4:E303=K17)*(H4:H303=\"Veli\"))","v":0},{"$f":"SUMPRODUCT((E4:E303=K17)*(H4:H303=\"Öğretmen\"))","v":0},{"$f":"SUMPRODUCT((E4:E303=K17)*(H4:H303=\"İdare\"))","v":0},{"$f":"SUMPRODUCT((E4:E303=K17)*(H4:H303=\"Diğer\"))","v":0}]
[15,null,null,null,null,null,null,"İdare",null,null,{"$f":"IF(Sabitler!A9=\"\",\"BOS\",Sabitler!A9)","v":"7C"},{"$f":"SUMPRODUCT((E4:E303=K18)*(H4:H303=\"Veli\"))","v":2},{"$f":"SUMPRODUCT((E4:E303=K18)*(H4:H303=\"Öğretmen\"))","v":0},{"$f":"SUMPRODUCT((E4:E303=K18)*(H4:H303=\"İdare\"))","v":0},{"$f":"SUMPRODUCT((E4:E303=K18)*(H4:H303=\"Diğer\"))","v":0}]
[16,null,null,null,null,null,null,null,null,null,{"$f":"IF(Sabitler!A10=\"\",\"BOS\",Sabitler!A10)","v":"7D"},{"$f":"SUMPRODUCT((E4:E303=K19)*(H4:H303=\"Veli\"))","v":0},{"$f":"SUMPRODUCT((E4:E303=K19)*(H4:H303=\"Öğretmen\"))","v":0},{"$f":"SUMPRODUCT((E4:E303=K19)*(H4:H303=\"İdare\"))","v":0},{"$f":"SUMPRODUCT((E4:E303=K19)*(H4:H303=\"Diğer\"))","v":0}]
[17,null,null,null,null,null,null,null,null,null,{"$f":"IF(Sabitler!A11=\"\",\"BOS\",Sabitler!A11)","v":"6A"},{"$f":"SUMPRODUCT((E4:E303=K20)*(H4:H303=\"Veli\"))","v":1},{"$f":"SUMPRODUCT((E4:E303=K20)*(H4:H303=\"Öğretmen\"))","v":0},{"$f":"SUMPRODUCT((E4:E303=K20)*(H4:H303=\"İdare\"))","v":0},{"$f":"SUMPRODUCT((E4:E303=K20)*(H4:H303=\"Diğer\"))","v":0}]
[18,null,null,null,null,null,null,null,null,null,{"$f":"IF(Sabitler!A12=\"\",\"BOS\",Sabitler!A12)","v":"6B"},{"$f":"SUMPRODUCT((E4:E303=K21)*(H4:H303=\"Veli\"))","v":3},{"$f":"SUMPRODUCT((E4:E303=K21)*(H4:H303=\"Öğretmen\"))","v":0},{"$f":"SUMPRODUCT((E4:E303=K21)*(H4:H303=\"İdare\"))","v":0},{"$f":"SUMPRODUCT((E4:E303=K21)*(H4:H303=\"Diğer\"))","v":0}]
[19,null,null,null,null,null,null,null,null,null,{"$f":"IF(Sabitler!A13=\"\",\"BOS\",Sabitler!A13)","v":"6C"},{"$f":"SUMPRODUCT((E4:E303=K22)*(H4:H303=\"Veli\"))","v":0},{"$f":"SUMPRODUCT((E4:E303=K22)*(H4:H303=\"Öğretmen\"))","v":0},{"$f":"SUMPRODUCT((E4:E303=K22)*(H4:H303=\"İdare\"))","v":0},{"$f":"SUMPRODUCT((E4:E303=K22)*(H4:H303=\"Diğer\"))","v":0}]
[20,null,null,null,null,null,null,null,null,null,{"$f":"IF(Sabitler!A14=\"\",\"BOS\",Sabitler!A14)","v":"6D"},{"$f":"SUMPRODUCT((E4:E303=K23)*(H4:H303=\"Veli\"))","v":0},{"$f":"SUMPRODUCT((E4:E303=K23)*(H4:H303=\"Öğretmen\"))","v":0},{"$f":"SUMPRODUCT((E4:E303=K23)*(H4:H303=\"İdare\"))","v":0},{"$f":"SUMPRODUCT((E4:E303=K23)*(H4:H303=\"Diğer\"))","v":0}]
[21,null,null,null,null,null,null,null,null,null,{"$f":"IF(Sabitler!A15=\"\",\"BOS\",Sabitler!A15)","v":"5A"},{"$f":"SUMPRODUCT((E4:E303=K24)*(H4:H303=\"Veli\"))","v":0},{"$f":"SUMPRODUCT((E4:E303=K24)*(H4:H303=\"Öğretmen\"))","v":0},{"$f":"SUMPRODUCT((E4:E303=K24)*(H4:H303=\"İdare\"))","v":0},{"$f":"SUMPRODUCT((E4:E303=K24)*(H4:H303=\"Diğer\"))","v":1}]
[22,null,null,null,null,null,null,null,null,null,{"$f":"IF(Sabitler!A16=\"\",\"BOS\",Sabitler!A16)","v":"5B"},{"$f":"SUMPRODUCT((E4:E303=K25)*(H4:H303=\"Veli\"))","v":1},{"$f":"SUMPRODUCT((E4:E303=K25)*(H4:H303=\"Öğretmen\"))","v":1},{"$f":"SUMPRODUCT((E4:E303=K25)*(H4:H303=\"İdare\"))","v":0},{"$f":"SUMPRODUCT((E4:E303=K25)*(H4:H303=\"Diğer\"))","v":0}]
[23,null,null,null,null,null,null,null,null,null,{"$f":"IF(Sabitler!A17=\"\",\"BOS\",Sabitler!A17)","v":"5C"},{"$f":"SUMPRODUCT((E4:E303=K26)*(H4:H303=\"Veli\"))","v":0},{"$f":"SUMPRODUCT((E4:E303=K26)*(H4:H303=\"Öğretmen\"))","v":0},{"$f":"SUMPRODUCT((E4:E303=K26)*(H4:H303=\"İdare\"))","v":0},{"$f":"SUMPRODUCT((E4:E303=K26)*(H4:H303=\"Diğer\"))","v":0}]
[24,null,null,null,null,null,null,null,null,null,{"$f":"IF(Sabitler!A18=\"\",\"BOS\",Sabitler!A18)","v":"BOS"},{"$f":"SUMPRODUCT((E4:E303=K27)*(H4:H303=\"Veli\"))","v":0},{"$f":"SUMPRODUCT((E4:E303=K27)*(H4:H303=\"Öğretmen\"))","v":0},{"$f":"SUMPRODUCT((E4:E303=K27)*(H4:H303=\"İdare\"))","v":0},{"$f":"SUMPRODUCT((E4:E303=K27)*(H4:H303=\"Diğer\"))","v":0}]
[25,null,null,null,null,null,null,null,null,null,{"$f":"IF(Sabitler!A19=\"\",\"BOS\",Sabitler!A19)","v":"BOS"},{"$f":"SUMPRODUCT((E4:E303=K28)*(H4:H303=\"Veli\"))","v":0},{"$f":"SUMPRODUCT((E4:E303=K28)*(H4:H303=\"Öğretmen\"))","v":0},{"$f":"SUMPRODUCT((E4:E303=K28)*(H4:H303=\"İdare\"))","v":0},{"$f":"SUMPRODUCT((E4:E303=K28)*(H4:H303=\"Diğer\"))","v":0}]
[26,null,null,null,null,null,null,null,null,null,{"$f":"IF(Sabitler!A20=\"\",\"BOS\",Sabitler!A20)","v":"BOS"},{"$f":"SUMPRODUCT((E4:E303=K29)*(H4:H303=\"Veli\"))","v":0},{"$f":"SUMPRODUCT((E4:E303=K29)*(H4:H303=\"Öğretmen\"))","v":0},{"$f":"SUMPRODUCT((E4:E303=K29)*(H4:H303=\"İdare\"))","v":0},{"$f":"SUMPRODUCT((E4:E303=K29)*(H4:H303=\"Diğer\"))","v":0}]
[27,null,null,null,null,null,null,null,null,null,{"$f":"IF(Sabitler!A21=\"\",\"BOS\",Sabitler!A21)","v":"BOS"},{"$f":"SUMPRODUCT((E4:E303=K30)*(H4:H303=\"Veli\"))","v":0},{"$f":"SUMPRODUCT((E4:E303=K30)*(H4:H303=\"Öğretmen\"))","v":0},{"$f":"SUMPRODUCT((E4:E303=K30)*(H4:H303=\"İdare\"))","v":0},{"$f":"SUMPRODUCT((E4:E303=K30)*(H4:H303=\"Diğer\"))","v":0}]
[28,null,null,null,null,null,null,null,null,null,{"$f":"IF(Sabitler!A22=\"\",\"BOS\",Sabitler!A22)","v":"BOS"},{"$f":"SUMPRODUCT((E4:E303=K31)*(H4:H303=\"Veli\"))","v":0},{"$f":"SUMPRODUCT((E4:E303=K31)*(H4:H303=\"Öğretmen\"))","v":0},{"$f":"SUMPRODUCT((E4:E303=K31)*(H4:H303=\"İdare\"))","v":0},{"$f":"SUMPRODUCT((E4:E303=K31)*(H4:H303=\"Diğer\"))","v":0}]
[29,null,null,null,null,null,null,null,null,null,{"$f":"IF(Sabitler!A23=\"\",\"BOS\",Sabitler!A23)","v":"BOS"},{"$f":"SUMPRODUCT((E4:E303=K32)*(H4:H303=\"Veli\"))","v":0},{"$f":"SUMPRODUCT((E4:E303=K32)*(H4:H303=\"Öğretmen\"))","v":0},{"$f":"SUMPRODUCT((E4:E303=K32)*(H4:H303=\"İdare\"))","v":0},{"$f":"SUMPRODUCT((E4:E303=K32)*(H4:H303=\"Diğer\"))","v":0}]
[30,null,null,null,null,null,null,null,null,null,{"$f":"IF(Sabitler!A24=\"\",\"BOS\",Sabitler!A24)","v":"BOS"},{"$f":"SUMPRODUCT((E4:E303=K33)*(H4:H303=\"Veli\"))","v":0},{"$f":"SUMPRODUCT((E4:E303=K33)*(H4:H303=\"Öğretmen\"))","v":0},{"$f":"SUMPRODUCT((E4:E303=K33)*(H4:H303=\"İdare\"))","v":0},{"$f":"SUMPRODUCT((E4:E303=K33)*(H4:H303=\"Diğer\"))","v":0}]
[31,null,null,null,null,null,null,null,null,null,{"$f":"IF(Sabitler!A25=\"\",\"BOS\",Sabitler!A25)","v":"BOS"},{"$f":"SUMPRODUCT((E4:E303=K34)*(H4:H303=\"Veli\"))","v":0},{"$f":"SUMPRODUCT((E4:E303=K34)*(H4:H303=\"Öğretmen\"))","v":0},{"$f":"SUMPRODUCT((E4:E303=K34)*(H4:H303=\"İdare\"))","v":0},{"$f":"SUMPRODUCT((E4:E303=K34)*(H4:H303=\"Diğer\"))","v":0}]
[32,null,null,null,null,null,null,null,null,null,{"$f":"IF(Sabitler!A26=\"\",\"BOS\",Sabitler!A26)","v":"BOS"},{"$f":"SUMPRODUCT((E4:E303=K35)*(H4:H303=\"Veli\"))","v":0},{"$f":"SUMPRODUCT((E4:E303=K35)*(H4:H303=\"Öğretmen\"))","v":0},{"$f":"SUMPRODUCT((E4:E303=K35)*(H4:H303=\"İdare\"))","v":0},{"$f":"SUMPRODUCT((E4:E303=K35)*(H4:H303=\"Diğer\"))","v":0}]
[33,null,null,null,null,null,null,null,null,null,{"$f":"IF(Sabitler!A27=\"\",\"BOS\",Sabitler!A27)","v":"BOS"},{"$f":"SUMPRODUCT((E4:E303=K36)*(H4:H303=\"Veli\"))","v":0},{"$f":"SUMPRODUCT((E4:E303=K36)*(H4:H303=\"Öğretmen\"))","v":0},{"$f":"SUMPRODUCT((E4:E303=K36)*(H4:H303=\"İdare\"))","v":0},{"$f":"SUMPRODUCT((E4:E303=K36)*(H4:H303=\"Diğer\"))","v":0}]
[34,null,null,null,null,null,null,null,null,null,{"$f":"IF(Sabitler!A28=\"\",\"BOS\",Sabitler!A28)","v":"BOS"},{"$f":"SUMPRODUCT((E4:E303=K37)*(H4:H303=\"Veli\"))","v":0},{"$f":"SUMPRODUCT((E4:E303=K37)*(H4:H303=\"Öğretmen\"))","v":0},{"$f":"SUMPRODUCT((E4:E303=K37)*(H4:H303=\"İdare\"))","v":0},{"$f":"SUMPRODUCT((E4:E303=K37)*(H4:H303=\"Diğer\"))","v":0}]
[35,null,null,null,null,null,null,null,null,null,{"$f":"IF(Sabitler!A29=\"\",\"BOS\",Sabitler!A29)","v":"BOS"},{"$f":"SUMPRODUCT((E4:E303=K38)*(H4:H303=\"Veli\"))","v":0},{"$f":"SUMPRODUCT((E4:E303=K38)*(H4:H303=\"Öğretmen\"))","v":0},{"$f":"SUMPRODUCT((E4:E303=K38)*(H4:H303=\"İdare\"))","v":0},{"$f":"SUMPRODUCT((E4:E303=K38)*(H4:H303=\"Diğer\"))","v":0}]
[36,null,null,null,null,null,null,null,null,null,{"$f":"IF(Sabitler!A30=\"\",\"BOS\",Sabitler!A30)","v":"BOS"},{"$f":"SUMPRODUCT((E4:E303=K39)*(H4:H303=\"Veli\"))","v":0},{"$f":"SUMPRODUCT((E4:E303=K39)*(H4:H303=\"Öğretmen\"))","v":0},{"$f":"SUMPRODUCT((E4:E303=K39)*(H4:H303=\"İdare\"))","v":0},{"$f":"SUMPRODUCT((E4:E303=K39)*(H4:H303=\"Diğer\"))","v":0}]
[37,null,null,null,null,null,null,null,null,null,{"$f":"IF(Sabitler!A31=\"\",\"BOS\",Sabitler!A31)","v":"BOS"},{"$f":"SUMPRODUCT((E4:E303=K40)*(H4:H303=\"Veli\"))","v":0},{"$f":"SUMPRODUCT((E4:E303=K40)*(H4:H303=\"Öğretmen\"))","v":0},{"$f":"SUMPRODUCT((E4:E303=K40)*(H4:H303=\"İdare\"))","v":0},{"$f":"SUMPRODUCT((E4:E303=K40)*(H4:H303=\"Diğer\"))","v":0}]
[38,null,null,null,null,null,null,null,null,null,"Toplam"]
[39]
[40]
[41]
[42,null,null,null,null,null,null,null,null,null,"YÖNLENDİRME"]
[43,null,null,null,null,null,null,null,null,null,"HASTANE",{"$f":"COUNTIF(J4:J303,\"HASTANE\")","v":7}]
[44,null,null,null,null,null,null,null,null,null,"ASPİM-CİM-EÇŞM",{"$f":"COUNTIF(J4:J303,\"ASPİM-CİM-EÇŞM\")","v":0}]
[45,null,null,null,null,null,null,null,null,null,"Diğer-STK vb",{"$f":"COUNTIF(J4:J303,\"Diğer-STK vb\")","v":0}]
[46,null,null,null,null,null,null,null,null,null,"REHBERLİK ARŞ. MERKEZİ",{"$f":"COUNTIF(J7:J306,\"REHBERLİK ARŞ. MERKEZİ\")","v":1}]
[47]
[48]
[49]
[50]
[51]
[52]
[53]
[54]
[55]
[56]
[57]
[58]
[59]
[60]
[61]
[62]
[63]
[64]
[65]
[66]
[67]
[68]
[69]
[70]
[71]
[72]
[73]
[74]
[75]
[76]
[77]
[78]
[79]
[80]
[81]
[82]
[83]
[84]
[85]
[86]
[87]
[88]
[89]
[90]
[91]
[92]
[93]
[94]
[95]
[96]
[97]
[98]
[99]
[100]
[101]
[102]
[103]
[104]
[105]
[106]
[107]
[108]
[109]
[110]
[111]
[112]
[113]
[114]
[115]
[116]
[117]
[118]
[119]
[120]
[121]
[122]
[123]
[124]
[125]
[126]
[127]
[128]
[129]
[130]
[131]
[132]
[133]
[134]
[135]
[136]
[137]
[138]
[139]
[140]
[141]
[142]
[143]
[144]
[145]
[146]
[147]
[148]
[149]
[150]
[151]
[152]
[153]
[154]
[155]
[156]
[157]
[158]
[159]
[160]
[161]
[162]
[163]
[164]
[165]
[166]
[167]
[168]
[169]
[170]
[171]
[172]
[173]
[174]
[175]
[176]
[177]
[178]
[179]
[180]
[181]
[182]
[183]
[184]
[185]
[186]
[187]
[188]
[189]
[190]
[191]
[192]
[193]
[194]
[195]
[196]
[197]
[198]
[199]
[200]
[201]
[202]
[203]
[204]
[205]
[206]
[207]
[208]
[209]
[210]
[211]
[212]
[213]
[214]
[215]
[216]
[217]
[218]
[219]
[220]
[221]
[222]
[223]
[224]
[225]
[226]
[227]
[228]
[229]
[230]
[231]
[232]
[233]
[234]
[235]
[236]
[237]
[238]
[239]
[240]
[241]
[242]
[243]
[244]
[245]
[246]
[247]
[248]
[249]
[250]
[251]
[252]
[253]
[254]
[255]
[256]
[257]
[258]
[259]
[260]
[261]
[262]
[263]
[264]
[265]
[266]
[267]
[268]
[269]
[270]
[271]
[272]
[273]
[274]
[275]
[276]
[277]
[278]
[279]
[280]
[281]
[282]
[283]
[284]
[285]
[286]
[287]
[288]
[289]
[290]
[291]
[292]
[293]
[294]
[295]
[296]
[297]
[298]
[299]
[300]

{"sheet":"Rapor","index":2,"n_rows":44,"n_cols":13,"rows_kept":44,"cut":false,"hidden":false,"merged":[[31,9,34,9],[36,9,40,9],[2,1,2,7],[25,9,28,9],[0,1,0,12],[1,1,1,12],[15,9,21,9],[3,9,3,12],[5,9,8,9]]}
[null,"…………………………………………………………………….."]
[null,"PSİKOLOJİK DANIŞMA VE REHBERLİK SERVİSİ Yıl Sonu GÖRÜŞME RAPORU"]
[]
[null,"Şube","Kız","Erkek","Görüşülen         Veli Sayısı","Görüşülen Öğrt. Sayısı","Görüşülen İdare Sayısı","Görüşülen Diğer Sayısı",null,"GÖRÜŞME  İSTATİSTİKLERİ "]
[null,{"$f":"IF('Öğrenci Kayıt'!M23=\"BOS\",\"\",'Öğrenci Kayıt'!M23)","v":"8A"},{"$f":"IF('Öğrenci Kayıt'!N23=0,\"\",'Öğrenci Kayıt'!N23)","v":6},{"$f":"IF('Öğrenci Kayıt'!O23=0,\"\",'Öğrenci Kayıt'!O23)","v":5},{"$f":"IF('Veli-Öğretmen-İdare'!L12=0,\"\",'Veli-Öğretmen-İdare'!L12)","v":""},{"$f":"IF('Veli-Öğretmen-İdare'!M12=0,\"\",'Veli-Öğretmen-İdare'!M12)","v":""},{"$f":"IF('Veli-Öğretmen-İdare'!N12=0,\"\",'Veli-Öğretmen-İdare'!N12)","v":""},{"$f":"IF('Veli-Öğretmen-İdare'!O12=0,\"\",'Veli-Öğretmen-İdare'!O12)","v":""}]
[null,{"$f":"IF('Öğrenci Kayıt'!M24=\"BOS\",\"\",'Öğrenci Kayıt'!M24)","v":"8B"},{"$f":"IF('Öğrenci Kayıt'!N24=0,\"\",'Öğrenci Kayıt'!N24)","v":""},{"$f":"IF('Öğrenci Kayıt'!O24=0,\"\",'Öğrenci Kayıt'!O24)","v":1},{"$f":"IF('Veli-Öğretmen-İdare'!L13=0,\"\",'Veli-Öğretmen-İdare'!L13)","v":""},{"$f":"IF('Veli-Öğretmen-İdare'!M13=0,\"\",'Veli-Öğretmen-İdare'!M13)","v":""},{"$f":"IF('Veli-Öğretmen-İdare'!N13=0,\"\",'Veli-Öğretmen-İdare'!N13)","v":""},{"$f":"IF('Veli-Öğretmen-İdare'!O13=0,\"\",'Veli-Öğretmen-İdare'!O13)","v":""},null,"GÖRÜŞME TÜRÜ",{"$f":"'Öğrenci Kayıt'!M5","v":"Kişisel-Sosyal Rehberlik"},{"$f":"'Öğrenci Kayıt'!N5","v":22}]
[null,{"$f":"IF('Öğrenci Kayıt'!M25=\"BOS\",\"\",'Öğrenci Kayıt'!M25)","v":"8C"},{"$f":"IF('Öğrenci Kayıt'!N25=0,\"\",'Öğrenci Kayıt'!N25)","v":""},{"$f":"IF('Öğrenci Kayıt'!O25=0,\"\",'Öğrenci Kayıt'!O25)","v":""},{"$f":"IF('Veli-Öğretmen-İdare'!L14=0,\"\",'Veli-Öğretmen-İdare'!L14)","v":""},{"$f":"IF('Veli-Öğretmen-İdare'!M14=0,\"\",'Veli-Öğretmen-İdare'!M14)","v":""},{"$f":"IF('Veli-Öğretmen-İdare'!N14=0,\"\",'Veli-Öğretmen-İdare'!N14)","v":""},{"$f":"IF('Veli-Öğretmen-İdare'!O14=0,\"\",'Veli-Öğretmen-İdare'!O14)","v":""},null,null,{"$f":"'Öğrenci Kayıt'!M6","v":"Bireysel Psiko.Danışma"},{"$f":"'Öğrenci Kayıt'!N6","v":1}]
[null,{"$f":"IF('Öğrenci Kayıt'!M26=\"BOS\",\"\",'Öğrenci Kayıt'!M26)","v":"8D"},{"$f":"IF('Öğrenci Kayıt'!N26=0,\"\",'Öğrenci Kayıt'!N26)","v":""},{"$f":"IF('Öğrenci Kayıt'!O26=0,\"\",'Öğrenci Kayıt'!O26)","v":""},{"$f":"IF('Veli-Öğretmen-İdare'!L15=0,\"\",'Veli-Öğretmen-İdare'!L15)","v":""},{"$f":"IF('Veli-Öğretmen-İdare'!M15=0,\"\",'Veli-Öğretmen-İdare'!M15)","v":""},{"$f":"IF('Veli-Öğretmen-İdare'!N15=0,\"\",'Veli-Öğretmen-İdare'!N15)","v":""},{"$f":"IF('Veli-Öğretmen-İdare'!O15=0,\"\",'Veli-Öğretmen-İdare'!O15)","v":""},null,null,{"$f":"'Öğrenci Kayıt'!M7","v":"Eğitsel Rehberlik"},{"$f":"'Öğrenci Kayıt'!N7","v":46}]
[null,{"$f":"IF('Öğrenci Kayıt'!M27=\"BOS\",\"\",'Öğrenci Kayıt'!M27)","v":"7A"},{"$f":"IF('Öğrenci Kayıt'!N27=0,\"\",'Öğrenci Kayıt'!N27)","v":1},{"$f":"IF('Öğrenci Kayıt'!O27=0,\"\",'Öğrenci Kayıt'!O27)","v":12},{"$f":"IF('Veli-Öğretmen-İdare'!L16=0,\"\",'Veli-Öğretmen-İdare'!L16)","v":2},{"$f":"IF('Veli-Öğretmen-İdare'!M16=0,\"\",'Veli-Öğretmen-İdare'!M16)","v":""},{"$f":"IF('Veli-Öğretmen-İdare'!N16=0,\"\",'Veli-Öğretmen-İdare'!N16)","v":""},{"$f":"IF('Veli-Öğretmen-İdare'!O16=0,\"\",'Veli-Öğretmen-İdare'!O16)","v":""},null,null,{"$f":"'Öğrenci Kayıt'!M8","v":"Mesleki Rehberlik"},{"$f":"'Öğrenci Kayıt'!N8","v":0}]
[null,{"$f":"IF('Öğrenci Kayıt'!M28=\"BOS\",\"\",'Öğrenci Kayıt'!M28)","v":"7B"},{"$f":"IF('Öğrenci Kayıt'!N28=0,\"\",'Öğrenci Kayıt'!N28)","v":5},{"$f":"IF('Öğrenci Kayıt'!O28=0,\"\",'Öğrenci Kayıt'!O28)","v":6},{"$f":"IF('Veli-Öğretmen-İdare'!L17=0,\"\",'Veli-Öğretmen-İdare'!L17)","v":""},{"$f":"IF('Veli-Öğretmen-İdare'!M17=0,\"\",'Veli-Öğretmen-İdare'!M17)","v":""},{"$f":"IF('Veli-Öğretmen-İdare'!N17=0,\"\",'Veli-Öğretmen-İdare'!N17)","v":""},{"$f":"IF('Veli-Öğretmen-İdare'!O17=0,\"\",'Veli-Öğretmen-İdare'!O17)","v":""},null,null,{"$f":"'Öğrenci Kayıt'!M9","v":"Grupla Psiko.Danışma"},{"$f":"'Öğrenci Kayıt'!N9","v":1}]
[null,{"$f":"IF('Öğrenci Kayıt'!M29=\"BOS\",\"\",'Öğrenci Kayıt'!M29)","v":"7C"},{"$f":"IF('Öğrenci Kayıt'!N29=0,\"\",'Öğrenci Kayıt'!N29)","v":6},{"$f":"IF('Öğrenci Kayıt'!O29=0,\"\",'Öğrenci Kayıt'!O29)","v":3},{"$f":"IF('Veli-Öğretmen-İdare'!L18=0,\"\",'Veli-Öğretmen-İdare'!L18)","v":2},{"$f":"IF('Veli-Öğretmen-İdare'!M18=0,\"\",'Veli-Öğretmen-İdare'!M18)","v":""},{"$f":"IF('Veli-Öğretmen-İdare'!N18=0,\"\",'Veli-Öğretmen-İdare'!N18)","v":""},{"$f":"IF('Veli-Öğretmen-İdare'!O18=0,\"\",'Veli-Öğretmen-İdare'!O18)","v":""},null,null,"TOPLAM",{"$f":"SUM(L5:L10)","v":70}]
[null,{"$f":"IF('Öğrenci Kayıt'!M30=\"BOS\",\"\",'Öğrenci Kayıt'!M30)","v":"7D"},{"$f":"IF('Öğrenci Kayıt'!N30=0,\"\",'Öğrenci Kayıt'!N30)","v":""},{"$f":"IF('Öğrenci Kayıt'!O30=0,\"\",'Öğrenci Kayıt'!O30)","v":""},{"$f":"IF('Veli-Öğretmen-İdare'!L19=0,\"\",'Veli-Öğretmen-İdare'!L19)","v":""},{"$f":"IF('Veli-Öğretmen-İdare'!M19=0,\"\",'Veli-Öğretmen-İdare'!M19)","v":""},{"$f":"IF('Veli-Öğretmen-İdare'!N19=0,\"\",'Veli-Öğretmen-İdare'!N19)","v":""},{"$f":"IF('Veli-Öğretmen-İdare'!O19=0,\"\",'Veli-Öğretmen-İdare'!O19)","v":""}]
[null,{"$f":"IF('Öğrenci Kayıt'!M31=\"BOS\",\"\",'Öğrenci Kayıt'!M31)","v":"6A"},{"$f":"IF('Öğrenci Kayıt'!N31=0,\"\",'Öğrenci Kayıt'!N31)","v":2},{"$f":"IF('Öğrenci Kayıt'!O31=0,\"\",'Öğrenci Kayıt'!O31)","v":1},{"$f":"IF('Veli-Öğretmen-İdare'!L20=0,\"\",'Veli-Öğretmen-İdare'!L20)","v":1},{"$f":"IF('Veli-Öğretmen-İdare'!M20=0,\"\",'Veli-Öğretmen-İdare'!M20)","v":""},{"$f":"IF('Veli-Öğretmen-İdare'!N20=0,\"\",'Veli-Öğretmen-İdare'!N20)","v":""},{"$f":"IF('Veli-Öğretmen-İdare'!O20=0,\"\",'Veli-Öğretmen-İdare'!O20)","v":""},null,null,null,"Kız","Erkek"]
[null,{"$f":"IF('Öğrenci Kayıt'!M32=\"BOS\",\"\",'Öğrenci Kayıt'!M32)","v":"6B"},{"$f":"IF('Öğrenci Kayıt'!N32=0,\"\",'Öğrenci Kayıt'!N32)","v":6},{"$f":"IF('Öğrenci Kayıt'!O32=0,\"\",'Öğrenci Kayıt'!O32)","v":2},{"$f":"IF('Veli-Öğretmen-İdare'!L21=0,\"\",'Veli-Öğretmen-İdare'!L21)","v":3},{"$f":"IF('Veli-Öğretmen-İdare'!M21=0,\"\",'Veli-Öğretmen-İdare'!M21)","v":""},{"$f":"IF('Veli-Öğretmen-İdare'!N21=0,\"\",'Veli-Öğretmen-İdare'!N21)","v":""},{"$f":"IF('Veli-Öğretmen-İdare'!O21=0,\"\",'Veli-Öğretmen-İdare'!O21)","v":""},null,null,"Yöneltme Yerleştirme",{"$f":"'Öğrenci Kayıt'!N12","v":0},{"$f":"'Öğrenci Kayıt'!O12","v":0}]
[null,{"$f":"IF('Öğrenci Kayıt'!M33=\"BOS\",\"\",'Öğrenci Kayıt'!M33)","v":"6C"},{"$f":"IF('Öğrenci Kayıt'!N33=0,\"\",'Öğrenci Kayıt'!N33)","v":2},{"$f":"IF('Öğrenci Kayıt'!O33=0,\"\",'Öğrenci Kayıt'!O33)","v":1},{"$f":"IF('Veli-Öğretmen-İdare'!L22=0,\"\",'Veli-Öğretmen-İdare'!L22)","v":""},{"$f":"IF('Veli-Öğretmen-İdare'!M22=0,\"\",'Veli-Öğretmen-İdare'!M22)","v":""},{"$f":"IF('Veli-Öğretmen-İdare'!N22=0,\"\",'Veli-Öğretmen-İdare'!N22)","v":""},{"$f":"IF('Veli-Öğretmen-İdare'!O22=0,\"\",'Veli-Öğretmen-İdare'!O22)","v":""},null,null,"Okula ve Çevreye Uyum",{"$f":"'Öğrenci Kayıt'!N13","v":0},{"$f":"'Öğrenci Kayıt'!O13","v":1}]
[null,{"$f":"IF('Öğrenci Kayıt'!M34=\"BOS\",\"\",'Öğrenci Kayıt'!M34)","v":"6D"},{"$f":"IF('Öğrenci Kayıt'!N34=0,\"\",'Öğrenci Kayıt'!N34)","v":""},{"$f":"IF('Öğrenci Kayıt'!O34=0,\"\",'Öğrenci Kayıt'!O34)","v":""},{"$f":"IF('Veli-Öğretmen-İdare'!L23=0,\"\",'Veli-Öğretmen-İdare'!L23)","v":""},{"$f":"IF('Veli-Öğretmen-İdare'!M23=0,\"\",'Veli-Öğretmen-İdare'!M23)","v":""},{"$f":"IF('Veli-Öğretmen-İdare'!N23=0,\"\",'Veli-Öğretmen-İdare'!N23)","v":""},{"$f":"IF('Veli-Öğretmen-İdare'!O23=0,\"\",'Veli-Öğretmen-İdare'!O23)","v":""},null,"ÖĞRENCİ GÖRÜŞMELERİ",{"$f":"'Öğrenci Kayıt'!M14","v":"Sağlık ile ilgili Konular"},{"$f":"'Öğrenci Kayıt'!N14","v":1},{"$f":"'Öğrenci Kayıt'!O14","v":0}]
[null,{"$f":"IF('Öğrenci Kayıt'!M35=\"BOS\",\"\",'Öğrenci Kayıt'!M35)","v":"5A"},{"$f":"IF('Öğrenci Kayıt'!N35=0,\"\",'Öğrenci Kayıt'!N35)","v":6},{"$f":"IF('Öğrenci Kayıt'!O35=0,\"\",'Öğrenci Kayıt'!O35)","v":4},{"$f":"IF('Veli-Öğretmen-İdare'!L24=0,\"\",'Veli-Öğretmen-İdare'!L24)","v":""},{"$f":"IF('Veli-Öğretmen-İdare'!M24=0,\"\",'Veli-Öğretmen-İdare'!M24)","v":""},{"$f":"IF('Veli-Öğretmen-İdare'!N24=0,\"\",'Veli-Öğretmen-İdare'!N24)","v":""},{"$f":"IF('Veli-Öğretmen-İdare'!O24=0,\"\",'Veli-Öğretmen-İdare'!O24)","v":1},null,null,{"$f":"'Öğrenci Kayıt'!M15","v":"Akademik Konular"},{"$f":"'Öğrenci Kayıt'!N15","v":23},{"$f":"'Öğrenci Kayıt'!O15","v":23}]
[null,{"$f":"IF('Öğrenci Kayıt'!M36=\"BOS\",\"\",'Öğrenci Kayıt'!M36)","v":"5B"},{"$f":"IF('Öğrenci Kayıt'!N36=0,\"\",'Öğrenci Kayıt'!N36)","v":1},{"$f":"IF('Öğrenci Kayıt'!O36=0,\"\",'Öğrenci Kayıt'!O36)","v":""},{"$f":"IF('Veli-Öğretmen-İdare'!L25=0,\"\",'Veli-Öğretmen-İdare'!L25)","v":1},{"$f":"IF('Veli-Öğretmen-İdare'!M25=0,\"\",'Veli-Öğretmen-İdare'!M25)","v":1},{"$f":"IF('Veli-Öğretmen-İdare'!N25=0,\"\",'Veli-Öğretmen-İdare'!N25)","v":""},{"$f":"IF('Veli-Öğretmen-İdare'!O25=0,\"\",'Veli-Öğretmen-İdare'!O25)","v":""},null,null,{"$f":"'Öğrenci Kayıt'!M16","v":"Ailevi Konular"},{"$f":"'Öğrenci Kayıt'!N16","v":3},{"$f":"'Öğrenci Kayıt'!O16","v":8}]
[null,{"$f":"IF('Öğrenci Kayıt'!M37=\"BOS\",\"\",'Öğrenci Kayıt'!M37)","v":"5C"},{"$f":"IF('Öğrenci Kayıt'!N37=0,\"\",'Öğrenci Kayıt'!N37)","v":""},{"$f":"IF('Öğrenci Kayıt'!O37=0,\"\",'Öğrenci Kayıt'!O37)","v":""},{"$f":"IF('Veli-Öğretmen-İdare'!L26=0,\"\",'Veli-Öğretmen-İdare'!L26)","v":""},{"$f":"IF('Veli-Öğretmen-İdare'!M26=0,\"\",'Veli-Öğretmen-İdare'!M26)","v":""},{"$f":"IF('Veli-Öğretmen-İdare'!N26=0,\"\",'Veli-Öğretmen-İdare'!N26)","v":""},{"$f":"IF('Veli-Öğretmen-İdare'!O26=0,\"\",'Veli-Öğretmen-İdare'!O26)","v":""},null,null,{"$f":"'Öğrenci Kayıt'!M17","v":"Psikolojik Uyum"},{"$f":"'Öğrenci Kayıt'!N17","v":8},{"$f":"'Öğrenci Kayıt'!O17","v":1}]
[null,{"$f":"IF('Öğrenci Kayıt'!M38=\"BOS\",\"\",'Öğrenci Kayıt'!M38)","v":""},{"$f":"IF('Öğrenci Kayıt'!N38=0,\"\",'Öğrenci Kayıt'!N38)","v":""},{"$f":"IF('Öğrenci Kayıt'!O38=0,\"\",'Öğrenci Kayıt'!O38)","v":""},{"$f":"IF('Veli-Öğretmen-İdare'!L27=0,\"\",'Veli-Öğretmen-İdare'!L27)","v":""},{"$f":"IF('Veli-Öğretmen-İdare'!M27=0,\"\",'Veli-Öğretmen-İdare'!M27)","v":""},{"$f":"IF('Veli-Öğretmen-İdare'!N27=0,\"\",'Veli-Öğretmen-İdare'!N27)","v":""},{"$f":"IF('Veli-Öğretmen-İdare'!O27=0,\"\",'Veli-Öğretmen-İdare'!O27)","v":""},null,null,{"$f":"'Öğrenci Kayıt'!M18","v":"Davranış Sorunları"},{"$f":"'Öğrenci Kayıt'!N18","v":0},{"$f":"'Öğrenci Kayıt'!O18","v":2}]
[null,{"$f":"IF('Öğrenci Kayıt'!M39=\"BOS\",\"\",'Öğrenci Kayıt'!M39)","v":""},{"$f":"IF('Öğrenci Kayıt'!N39=0,\"\",'Öğrenci Kayıt'!N39)","v":""},{"$f":"IF('Öğrenci Kayıt'!O39=0,\"\",'Öğrenci Kayıt'!O39)","v":""},{"$f":"IF('Veli-Öğretmen-İdare'!L28=0,\"\",'Veli-Öğretmen-İdare'!L28)","v":""},{"$f":"IF('Veli-Öğretmen-İdare'!M28=0,\"\",'Veli-Öğretmen-İdare'!M28)","v":""},{"$f":"IF('Veli-Öğretmen-İdare'!N28=0,\"\",'Veli-Öğretmen-İdare'!N28)","v":""},{"$f":"IF('Veli-Öğretmen-İdare'!O28=0,\"\",'Veli-Öğretmen-İdare'!O28)","v":""},null,null,{"$f":"'Öğrenci Kayıt'!M19","v":"Sosyo-Eko. Konular"},{"$f":"'Öğrenci Kayıt'!N19","v":0},{"$f":"'Öğrenci Kayıt'!O19","v":0}]
[null,{"$f":"IF('Öğrenci Kayıt'!M40=\"BOS\",\"\",'Öğrenci Kayıt'!M40)","v":""},{"$f":"IF('Öğrenci Kayıt'!N40=0,\"\",'Öğrenci Kayıt'!N40)","v":""},{"$f":"IF('Öğrenci Kayıt'!O40=0,\"\",'Öğrenci Kayıt'!O40)","v":""},{"$f":"IF('Veli-Öğretmen-İdare'!L29=0,\"\",'Veli-Öğretmen-İdare'!L29)","v":""},{"$f":"IF('Veli-Öğretmen-İdare'!M29=0,\"\",'Veli-Öğretmen-İdare'!M29)","v":""},{"$f":"IF('Veli-Öğretmen-İdare'!N29=0,\"\",'Veli-Öğretmen-İdare'!N29)","v":""},{"$f":"IF('Veli-Öğretmen-İdare'!O29=0,\"\",'Veli-Öğretmen-İdare'!O29)","v":""},null,null,{"$f":"'Öğrenci Kayıt'!M20","v":"Diğer Konular"},{"$f":"'Öğrenci Kayıt'!N20","v":0},{"$f":"'Öğrenci Kayıt'!O20","v":0}]
[null,{"$f":"IF('Öğrenci Kayıt'!M41=\"BOS\",\"\",'Öğrenci Kayıt'!M41)","v":""},{"$f":"IF('Öğrenci Kayıt'!N41=0,\"\",'Öğrenci Kayıt'!N41)","v":""},{"$f":"IF('Öğrenci Kayıt'!O41=0,\"\",'Öğrenci Kayıt'!O41)","v":""},{"$f":"IF('Veli-Öğretmen-İdare'!L30=0,\"\",'Veli-Öğretmen-İdare'!L30)","v":""},{"$f":"IF('Veli-Öğretmen-İdare'!M30=0,\"\",'Veli-Öğretmen-İdare'!M30)","v":""},{"$f":"IF('Veli-Öğretmen-İdare'!N30=0,\"\",'Veli-Öğretmen-İdare'!N30)","v":""},{"$f":"IF('Veli-Öğretmen-İdare'!O30=0,\"\",'Veli-Öğretmen-İdare'!O30)","v":""},null,null,{"$f":"'Öğrenci Kayıt'!M21","v":"Sosyal Uyum"},{"$f":"'Öğrenci Kayıt'!N21","v":0},{"$f":"'Öğrenci Kayıt'!O21","v":0}]
[null,{"$f":"IF('Öğrenci Kayıt'!M42=\"BOS\",\"\",'Öğrenci Kayıt'!M42)","v":""},{"$f":"IF('Öğrenci Kayıt'!N42=0,\"\",'Öğrenci Kayıt'!N42)","v":""},{"$f":"IF('Öğrenci Kayıt'!O42=0,\"\",'Öğrenci Kayıt'!O42)","v":""},{"$f":"IF('Veli-Öğretmen-İdare'!L31=0,\"\",'Veli-Öğretmen-İdare'!L31)","v":""},{"$f":"IF('Veli-Öğretmen-İdare'!M31=0,\"\",'Veli-Öğretmen-İdare'!M31)","v":""},{"$f":"IF('Veli-Öğretmen-İdare'!N31=0,\"\",'Veli-Öğretmen-İdare'!N31)","v":""},{"$f":"IF('Veli-Öğretmen-İdare'!O31=0,\"\",'Veli-Öğretmen-İdare'!O31)","v":""}]
[null,{"$f":"IF('Öğrenci Kayıt'!M43=\"BOS\",\"\",'Öğrenci Kayıt'!M43)","v":""},{"$f":"IF('Öğrenci Kayıt'!N43=0,\"\",'Öğrenci Kayıt'!N43)","v":""},{"$f":"IF('Öğrenci Kayıt'!O43=0,\"\",'Öğrenci Kayıt'!O43)","v":""},{"$f":"IF('Veli-Öğretmen-İdare'!L32=0,\"\",'Veli-Öğretmen-İdare'!L32)","v":""},{"$f":"IF('Veli-Öğretmen-İdare'!M32=0,\"\",'Veli-Öğretmen-İdare'!M32)","v":""},{"$f":"IF('Veli-Öğretmen-İdare'!N32=0,\"\",'Veli-Öğretmen-İdare'!N32)","v":""},{"$f":"IF('Veli-Öğretmen-İdare'!O32=0,\"\",'Veli-Öğretmen-İdare'!O32)","v":""},null,null,"Veli Ziyareti",{"$f":"'Veli-Öğretmen-İdare'!L4","v":1}]
[null,{"$f":"IF('Öğrenci Kayıt'!M44=\"BOS\",\"\",'Öğrenci Kayıt'!M44)","v":""},{"$f":"IF('Öğrenci Kayıt'!N44=0,\"\",'Öğrenci Kayıt'!N44)","v":""},{"$f":"IF('Öğrenci Kayıt'!O44=0,\"\",'Öğrenci Kayıt'!O44)","v":""},{"$f":"IF('Veli-Öğretmen-İdare'!L33=0,\"\",'Veli-Öğretmen-İdare'!L33)","v":""},{"$f":"IF('Veli-Öğretmen-İdare'!M33=0,\"\",'Veli-Öğretmen-İdare'!M33)","v":""},{"$f":"IF('Veli-Öğretmen-İdare'!N33=0,\"\",'Veli-Öğretmen-İdare'!N33)","v":""},{"$f":"IF('Veli-Öğretmen-İdare'!O33=0,\"\",'Veli-Öğretmen-İdare'!O33)","v":""},null,"Görüşme Türü","Veli Görüşmesi",{"$f":"'Veli-Öğretmen-İdare'!L5","v":9}]
[null,{"$f":"IF('Öğrenci Kayıt'!M45=\"BOS\",\"\",'Öğrenci Kayıt'!M45)","v":""},{"$f":"IF('Öğrenci Kayıt'!N45=0,\"\",'Öğrenci Kayıt'!N45)","v":""},{"$f":"IF('Öğrenci Kayıt'!O45=0,\"\",'Öğrenci Kayıt'!O45)","v":""},{"$f":"IF('Veli-Öğretmen-İdare'!L34=0,\"\",'Veli-Öğretmen-İdare'!L34)","v":""},{"$f":"IF('Veli-Öğretmen-İdare'!M34=0,\"\",'Veli-Öğretmen-İdare'!M34)","v":""},{"$f":"IF('Veli-Öğretmen-İdare'!N34=0,\"\",'Veli-Öğretmen-İdare'!N34)","v":""},{"$f":"IF('Veli-Öğretmen-İdare'!O34=0,\"\",'Veli-Öğretmen-İdare'!O34)","v":""},null,null,"Öğretmen Görüş.",{"$f":"'Veli-Öğretmen-İdare'!L6","v":1}]
[null,{"$f":"IF('Öğrenci Kayıt'!M46=\"BOS\",\"\",'Öğrenci Kayıt'!M46)","v":""},{"$f":"IF('Öğrenci Kayıt'!N46=0,\"\",'Öğrenci Kayıt'!N46)","v":""},{"$f":"IF('Öğrenci Kayıt'!O46=0,\"\",'Öğrenci Kayıt'!O46)","v":""},{"$f":"IF('Veli-Öğretmen-İdare'!L35=0,\"\",'Veli-Öğretmen-İdare'!L35)","v":""},{"$f":"IF('Veli-Öğretmen-İdare'!M35=0,\"\",'Veli-Öğretmen-İdare'!M35)","v":""},{"$f":"IF('Veli-Öğretmen-İdare'!N35=0,\"\",'Veli-Öğretmen-İdare'!N35)","v":""},{"$f":"IF('Veli-Öğretmen-İdare'!O35=0,\"\",'Veli-Öğretmen-İdare'!O35)","v":""},null,null,"İdare Görüşmesi",{"$f":"'Veli-Öğretmen-İdare'!L7","v":1}]
[null,{"$f":"IF('Öğrenci Kayıt'!M47=\"BOS\",\"\",'Öğrenci Kayıt'!M47)","v":""},{"$f":"IF('Öğrenci Kayıt'!N47=0,\"\",'Öğrenci Kayıt'!N47)","v":""},{"$f":"IF('Öğrenci Kayıt'!O47=0,\"\",'Öğrenci Kayıt'!O47)","v":""},{"$f":"IF('Veli-Öğretmen-İdare'!L36=0,\"\",'Veli-Öğretmen-İdare'!L36)","v":""},{"$f":"IF('Veli-Öğretmen-İdare'!M36=0,\"\",'Veli-Öğretmen-İdare'!M36)","v":""},{"$f":"IF('Veli-Öğretmen-İdare'!N36=0,\"\",'Veli-Öğretmen-İdare'!N36)","v":""},{"$f":"IF('Veli-Öğretmen-İdare'!O36=0,\"\",'Veli-Öğretmen-İdare'!O36)","v":""},null,null,"Diğer",{"$f":"'Veli-Öğretmen-İdare'!L8","v":1}]
[null,{"$f":"IF('Öğrenci Kayıt'!M48=\"BOS\",\"\",'Öğrenci Kayıt'!M48)","v":""},{"$f":"IF('Öğrenci Kayıt'!N48=0,\"\",'Öğrenci Kayıt'!N48)","v":""},{"$f":"IF('Öğrenci Kayıt'!O48=0,\"\",'Öğrenci Kayıt'!O48)","v":""},{"$f":"IF('Veli-Öğretmen-İdare'!L37=0,\"\",'Veli-Öğretmen-İdare'!L37)","v":""},{"$f":"IF('Veli-Öğretmen-İdare'!M37=0,\"\",'Veli-Öğretmen-İdare'!M37)","v":""},{"$f":"IF('Veli-Öğretmen-İdare'!N37=0,\"\",'Veli-Öğretmen-İdare'!N37)","v":""},{"$f":"IF('Veli-Öğretmen-İdare'!O37=0,\"\",'Veli-Öğretmen-İdare'!O37)","v":""},null,null,"Müşavirlik",{"$f":"'Veli-Öğretmen-İdare'!L9","v":2}]
[null,{"$f":"IF('Öğrenci Kayıt'!M49=\"BOS\",\"\",'Öğrenci Kayıt'!M49)","v":""},{"$f":"IF('Öğrenci Kayıt'!N49=0,\"\",'Öğrenci Kayıt'!N49)","v":""},{"$f":"IF('Öğrenci Kayıt'!O49=0,\"\",'Öğrenci Kayıt'!O49)","v":""},{"$f":"IF('Veli-Öğretmen-İdare'!L38=0,\"\",'Veli-Öğretmen-İdare'!L38)","v":""},{"$f":"IF('Veli-Öğretmen-İdare'!M38=0,\"\",'Veli-Öğretmen-İdare'!M38)","v":""},{"$f":"IF('Veli-Öğretmen-İdare'!N38=0,\"\",'Veli-Öğretmen-İdare'!N38)","v":""},{"$f":"IF('Veli-Öğretmen-İdare'!O38=0,\"\",'Veli-Öğretmen-İdare'!O38)","v":""}]
[null,{"$f":"IF('Öğrenci Kayıt'!M50=\"BOS\",\"\",'Öğrenci Kayıt'!M50)","v":""},{"$f":"IF('Öğrenci Kayıt'!N50=0,\"\",'Öğrenci Kayıt'!N50)","v":""},{"$f":"IF('Öğrenci Kayıt'!O50=0,\"\",'Öğrenci Kayıt'!O50)","v":""},{"$f":"IF('Veli-Öğretmen-İdare'!L39=0,\"\",'Veli-Öğretmen-İdare'!L39)","v":""},{"$f":"IF('Veli-Öğretmen-İdare'!M39=0,\"\",'Veli-Öğretmen-İdare'!M39)","v":""},{"$f":"IF('Veli-Öğretmen-İdare'!N39=0,\"\",'Veli-Öğretmen-İdare'!N39)","v":""},{"$f":"IF('Veli-Öğretmen-İdare'!O39=0,\"\",'Veli-Öğretmen-İdare'!O39)","v":""},null,"Yönlendirme (Öğrenci)","HASTANE",{"$f":"'Öğrenci Kayıt'!O54","v":7}]
[null,{"$f":"IF('Öğrenci Kayıt'!M51=\"BOS\",\"\",'Öğrenci Kayıt'!M51)","v":""},{"$f":"IF('Öğrenci Kayıt'!N51=0,\"\",'Öğrenci Kayıt'!N51)","v":""},{"$f":"IF('Öğrenci Kayıt'!O51=0,\"\",'Öğrenci Kayıt'!O51)","v":""},{"$f":"IF('Veli-Öğretmen-İdare'!L40=0,\"\",'Veli-Öğretmen-İdare'!L40)","v":""},{"$f":"IF('Veli-Öğretmen-İdare'!M40=0,\"\",'Veli-Öğretmen-İdare'!M40)","v":""},{"$f":"IF('Veli-Öğretmen-İdare'!N40=0,\"\",'Veli-Öğretmen-İdare'!N40)","v":""},{"$f":"IF('Veli-Öğretmen-İdare'!O40=0,\"\",'Veli-Öğretmen-İdare'!O40)","v":""},null,null,"ASPİM-CİM-EÇŞM",{"$f":"'Öğrenci Kayıt'!O55","v":0}]
[null,"Toplam",{"$f":"'Öğrenci Kayıt'!N52","v":35},{"$f":"'Öğrenci Kayıt'!O52","v":35},{"$f":"SUM(E5:E33)","v":9},{"$f":"SUM(F5:F33)","v":1},{"$f":"SUM(G5:G33)","v":0},{"$f":"SUM(H5:H33)","v":1},null,null,"Diğer-STK vb",{"$f":"'Öğrenci Kayıt'!O56","v":0}]
[null,null,null,null,null,null,null,null,null,null,"REHBERLİK ARŞ. MERKEZİ",{"$f":"'Öğrenci Kayıt'!O57","v":1}]
[]
[null,"                                               Rehberlik Servisi  \"Sevgi Hayatın Özüdür\"",null,null,null,null,null,null,null,"Başvuru Şekli","Veli İsteği",{"$f":"'Öğrenci Kayıt'!O59","v":4}]
[null,"       Rehberlik Servisi  \"Sevgi Hayatın Özüdür\"",null,null,null,null,null,null,null,null,"Kendi İsteği",{"$f":"'Öğrenci Kayıt'!O60","v":37}]
[null,null,null,null,null,null,null,null,null,null,"İdare İsteği",{"$f":"'Öğrenci Kayıt'!O61","v":4}]
[null,null,null,null,null,null,null,null,null,null,"Öğretmen İsteği",{"$f":"'Öğrenci Kayıt'!O62","v":24}]
[null,null,null,null,null,null,null,null,null,null,"Diğer",{"$f":"'Öğrenci Kayıt'!O63","v":1}]
[]
[]
[null,null,null,"rehber öğretmen"]

{"sheet":"Sabitler","index":3,"n_rows":17,"n_cols":3,"rows_kept":17,"cut":false,"hidden":false,"merged":[]}
["Şubeler (Kırmızı Alan Boş Kalacak)"]
[]
["8A",null,"Mavi bölgedeki sınıfları silerek kendi"]
["8B",null,"şubelerinizi yazabilirsiniz."]
["8C"]
["8D"]
["7A"]
["7B"]
["7C"]
["7D"]
["6A"]
["6B"]
["6C"]
["6D"]
["5A"]
["5B"]
["5C"]

{"sheet":"AÇIKLAMA","index":4,"n_rows":38,"n_cols":9,"rows_kept":38,"cut":false,"hidden":false,"merged":[[26,2,34,11],[37,5,39,11],[37,1,39,3],[20,8,22,12],[1,1,2,12],[17,1,17,12],[11,1,11,11],[12,1,12,11],[13,1,13,11],[15,1,15,11],[3,1,3,11],[4,1,4,11],[5,1,5,11],[6,1,6,11],[7,1,7,11],[8,1,8,11],[9,1,9,11],[10,1,10,11]]}
[]
[null,"Görüşme Konuları ile İlgili AÇIKLAMALAR"]
[]
[null,"Sağlıkla İlgili Konular: Öğrencinin fizyolojik gelişiminde yaşanan aksaklıklar, eğitsel performansını etkileyen bilişsel becerilerde gerilik, üstün yetenekli olma ihtimali, psikosomatik sorunlar, kişisel hijyen vb."]
[null,"Akademik Konular: Başarısızlık, devamsızlık, motivasyon, dersle ilgili sorumluluk almak istememe, hedef belirleyememe, üst öğrenime geçememe korkusu, çalışma alışkanlıkları vb."]
[null,"Okula ve Çevreye Uyum: Taşınma, okul-sınıf-öğretmen değişikliği, zorunlu göç durumu, nakil gelme vb."]
[null,"Sosyoekonomik Konular: Maddi durumdaki zorluklar, çevredeki yardım ya da burslarla ilgili bilgilendirmeler, çocuk işçiliği vb."]
[null,"Ailevi Konular: Anne babayla düzeyli bir iletişim kuramama, aileye karşı olumsuz tutumlar, aile içi çatışmalar, boşanma, kayıp, yas, kopmuş aile bağları, kuşak çatışmaları vb."]
[null,"Yöneltme ve Yerleştirme: Üst öğrenim kurumları hakkında bilgilendirme, ergen yada çocuğun yeteneklerinin keşfedilmesi, kendini tanıma, ilgi alanlarının zenginleştirme, mesleki yönelim çalışmaları vb."]
[null,"Davranış Sorunu: Saldırgan davranışlar, madde kullanımı, teknoloji bağımlılığı, intihar girişimi, erken cinsel deneyim, disiplin problemleri, okul/sınıf kurallarına uymama, eşyalara zarar verme, küfretme, parmak emme, tırnak yeme, yalan söyleme, alt ıslatma, izinsiz alma davranışı vb."]
[null,"Psikolojik Uyum: Özdeşleşme, özerklik ve sorumluluk duygularını geliştirme, kimlik gelişimi, iç kontrol geliştirme, anksiyete, depresyon, fobi, fiziksel görünümünden hoşnut olmama, vicdan, değer gelişimi, ahlaki gelişim, öfke kontrolü vb. konuları kapsamaktadır."]
[null,"Diğer: Diğer kategorilere dahil edilemeyen çalışma konularınızı “diğer” isimli alan içinde belirtebilirsiniz."]
[null,"Sosyal Uyum: Toplumdaki yeriyle ilgili sorun ve kaygılar, kız-erkek arkadaşlığı ile ilgili konular, arkadaş edinme, akranlarla anlaşabilmeyi öğrenebilme, bir gruba üye olmak isteme, öğretmen-öğrenci arasındaki çatışmalar, içinde yaşadığı toplumun özelliklerine bağlı kalarak yaşadığı kaygı ve çatışmalar, çevreye ilginin azalması, içe yönelim, insanlara karşı yaşanan güven problemi, sosyal grup ve kurumlarla olumlu tutumları geliştirebilme, diğer insanların haklarını çiğneme vb."]
[null,"Müşavirlik: Müşavirlik rehberlik öğretmeninin kişisel sosyal, eğitsel ve mesleki gelişim alanlarında öğrencinin özel bir durumuna ilişkin veliyle, öğretmenle, yöneticiyle çalışmasıdır. Müşavirlik öğrencinin özel durumu ortaya çıkmadan önce koruyucu ve önleyici amaçla veya özel durumu ortaya çıktıktan sonra müdahale amacıyla yapılır. Zamanında ve etkili yapılan bir müşavirliğin RPD hizmetleri içerisinde önemli bir yeri vardır.\n* Veliye Müşavirlik; Veliye müşavirlik, öğretmen yönlendirmesi, rehberlik öğretmenin veya velinin kendi talebi ile yapılır. Bu görüşmelerde veliye uzmanlık gerektiren hizmetler sunulur, verilen hizmet izlenir ve değerlendirilir. Aile eğitimleri ve ev ziyaretleri müşavirlik hizmetleri kapsamındadır.\n* Öğretmene Müşavirlik; Öğrenci veya öğrenci grubunun özel ihtiyaçlarını görüşmek amacıyla rehberlik öğretmeni ve öğretmenin karşılıklı ve profesyonel bilgi alışverişinde bulunmasıdır."]
[null,"VELİ ZİYARETİ : Öğrencinin ailesine yapılan veli ziyaretleri görüşme kayıt programında kayıt altına alınabilir. RAPOR bölümünde verisi görünür."]
[null,"Grubla Psikolojik Danışma : Açtığınız grubla psiokolojik danışma rapor bölümünde verisi görünür. Detayını öğrenci görüşme sayfasında yazabilirsiniz. İsterseniz her bir oturum için ayrı bir Tutanak tutabilirsiniz."]
[null,"Randevu : ","Bu sayfa işinizi görür. Detaylıdır."]
[null,"RİSKLİ ÖĞRENCİLER ; Bu sayfa özel tasarlanmıştır. Bu programın en önemli sayfadır. Bilgiler; e-okul, görüşme ve değişik kaynaklardan veri içeririr Önemli bir sayfadır. Her bilginin önemi vardır. 6 ayda bir güncelleme yapılması faydalı olur."]
[null,"ÖZEL EĞİTİM ; Bu bölümde özel eğitim öğrencilerine ait bilgiler vardır. "]
[]
[null,null,"EÇŞM : EMNİYET ÇOCUK ŞUBE MÜDÜRLÜĞÜ",null,null,null,null,null,"SAYFALARDA, BAZI AYARLAR /GÜVENLİK EKLENTİLERİ VE MAKROLAR ÇALIŞMAZSA, excel şeçeneklerinden HEPSİNİ ETKİNLEŞTİR YAPINIZ"]
[null,null,"ASPİM : Aile ve sosyal politikalar il müdürlüğü veya ALO 183"]
[null,null,"CİM : Çocuk İSTİSMAR MERKEZİ"]
[]
[null,"NOT : ÇALIŞMANIN ORASINI BURASINI FAZLA KURCALAMAYIN FORMULLERİ BOZULABİLİR. YİNEDE SİZ BİLİRSİNİZ "]
[]
[null,null,"BU ÇALIŞMA DÜZENLENİRKEN değerli rehber öğretmen arkadaşım ÖZKAN EMİNOĞLU'nun çalışması üzerine düzenleme yapılmıştır. AMA ONUN DOSYASINA ÇOK EKLEMELER YAPTIM. ama yinede onun yaptığını kendim yapmış gibi sunmak doğru olmaz. Zaten onun bilgilerini kaldırmadım. SAYFA KORUMA PAROLASI 1 2 3 dür. Kendi kullandığım excel de hazırladığım rehberlik servisi programını ise yeniden tasarladım. onun içinde herşey var....örneğin sorularını kendim hazırladığım ve değerlendirmesini yaptığım AKRAN ZORBALIĞI ölçen anket, Kariyer Testi...gibi. Onları şu aşamada paylaşamıyorum. Yine, REHBER ÖĞRETMEN şerif gülmüş'ün EXCELDE HAZIRLAMIŞ güzel bir görüşme programı var. youtup da şerif gülmüş yazınca açıklamalı videolarıda var. videoların altında dosyaların indirme linki var. ben başarılı buldum. inceleyin değerlendirin.."]
[]
[]
[]
[]
[]
[]
[]
[]
[]
[]
[null,"RAPOR sayfası YILSONU ÇALIŞMA RAPORUNA göre ayarlanmıştır. Hatta fazlası vardır. Çıktı alıp, arşivleyebilirsiniz.",null,null,null,"kendi hazırladığım rehberlik servisi programı üzerindeki çalışmalarım devam ediyor. Onuda paylaşacağım. Ama sanal alem çok acımasız..!. Öbür tarafa çeyiz hazırlamıyorum. Buda biline. Hele, para pul işlerine giren ve işi kapitalizmle değerlendirilerden kişiler benden uzak dursun lütfen..."]

{"sheet":"Randevu","index":5,"n_rows":38,"n_cols":9,"rows_kept":38,"cut":false,"hidden":false,"merged":[[0,0,0,6]]}
["RANDEVU KAYIT FORMU"]
["SIRA","Randevu Verilenin                                          Adı-Soyadı ","Randevu  Tarihi","Randevu                  Saati","Sınıf","Randevu Verilen                      ","Randevu Sonucu                      "]
[1,null,"2018-02-22",null,null,null,null,null,"R. GELDİ"]
[2,null,null,null,null,null,null,null,"R.GELMEDİ"]
[3,null,null,null,null,null,null,null,"TEKRAR R. VERİLDİ"]
[4]
[5,null,null,null,null,null,null,null,"Öğrenci "]
[6,null,null,null,null,null,null,null,"Anne "]
[7,null,null,null,null,null,null,null,"Baba"]
[8,null,null,null,null,null,null,null,"Diğer"]
[9]
[10,null,null,null,null,null,null,null,"09;00"]
[11,null,null,null,null,null,null,null,"09;30"]
[12,null,null,null,null,null,null,null,"10;00"]
[13,null,null,null,null,null,null,null,"10;30"]
[14,null,null,null,null,null,null,null,"11;00"]
[15,null,null,null,null,null,null,null,"11;30"]
[16,null,null,null,null,null,null,null,"12;00"]
[17,null,null,null,null,null,null,null,"12;30"]
[18,null,null,null,null,null,null,null,"13;00"]
[19,null,null,null,null,null,null,null,"13;30"]
[20,null,null,null,null,null,null,null,"14;00"]
[21,null,null,null,null,null,null,null,"14;30"]
[22]
[23]
[24]
[25]
[26]
[27]
[28]
[29]
[30]
[31]
[32]
[33]
[34]
[35]
[36]

{"sheet":"RİSKLİ ÖĞRENCİLER","index":6,"n_rows":38,"n_cols":26,"rows_kept":38,"cut":false,"hidden":false,"merged":[[0,0,0,16]]}
["R i s k     Grubundaki    Ö ğ r e n c i l e r (Güncelleme : 20.11.2016)",null,null,null,null,null,null,null,null,null,null,null,null,null,null,null,null,null,"0-10  Normal               11-18 Yüksek            19 + Ç.Yüksek"]
["SIRA","Adı Soyadı","Öğr. No","Sınıfı","D.Tarihi","Nereden geliyor?","Kardeş Sayısı","Baba Eğit.","Anne Eğit.","Babanın Mesleği","Annenin Mesleği","Baba Adı-İletişim","Anne Adı-İletişim","1.R.D","2.R.D","3.R.D","Risk Değer. Görüş. ; \"Sağlık Sorunu- Kaza - Ailede Kronik Hastalık- İlaç Kullanan -Okul Başarısı-Maddi Durum-Engelli Birey- Hapiste Olan Birey- Özel Durumlar, Gözlenen Diğer Sorunlar ve Diğer Bilgiler...\"","R.P.","Risk Derecesi",null,"Bağımlılık-9",null,null,"Yüksek",null,"Oku-Yaz Bilmiyor"]
[1,null,null,null,null,null,1,"Lise","Lise",null,null,null,null,"Boşanmış Aile-7","Psikiyatrik Has.-8",null,null,15,{"$f":"IF(R3<10,\"Normal\",IF(R3<18,\"Yüksek\",IF(R3<25,\"Çok Yüksek\")))","v":"Yüksek"},null,"Psikiyatrik Has.-8",null,null,"Normal",null,"İlkokul"]
[2,null,null,null,null,null,2,"Lise","Ortaokul",null,null,null,null,"Engelli Birey-7","Kronik Hast.-7","Okul -Aile Sorunları-7",null,21,"Çok Yüksek",null,"İstismar-8",null,null,"Ç.Yüksek",null,"Ortaokul"]
[3,null,null,null,null,null,2,"Ortaokul","İlkokul",null,null,null,null,"Boşanmış Aile-7","Psikiyatrik Has.-8",null,null,15,"Yüksek",null,"Anne Ölmüş-5",null,null,null,null,"Lise"]
[4,null,null,null,null,null,2,"Ortaokul","İlkokul",null,null,null,null,"Kronik Hast.-7","Maddi Sorun-6","Okul -Aile Sorunları-7",null,9,"Normal",null,"Baba Ölmüş-5",null,null,null,null,"Üniversite"]
[5,null,null,null,null,null,2,"Ortaokul","Lise",null,null,null,null,"Engelli Birey-7",null,null,null,7,"Normal",null,"Boşanmış Aile-7",null,null,null,null,"?"]
[6,null,null,null,null,null,3,"Lise","?",null,null,null,null,"Anne Ölmüş-5",null,null,null,5,"Normal",null,"Şuça İtilmiş-8"]
[7,null,null,null,null,null,2,"Ortaokul","Lise",null,null,null,null,"Boşanmış Aile-7",null,null,null,7,"Normal",null,"Kronik Hast.-7"]
[8,null,null,null,null,null,2,"Ortaokul","Ortaokul",null,null,null,null,"Boşanmış Aile-7",null,null,null,7,"Normal",null,"Antisosyal Dav.-9"]
[9,null,null,null,null,null,3,"?","Ortaokul",null,null,null,null,"Baba Ölmüş-5",null,null,null,5,"Normal",null,"Engelli Birey-7"]
[10,null,null,null,null,null,1,"Ortaokul","İlkokul",null,null,null,null,"Boşanmış Aile-7",null,null,null,7,"Normal",null,"Maddi Sorun-6"]
[11,null,null,null,null,null,2,"?","İlkokul",null,null,null,null,"Baba Ölmüş-5","Maddi Sorun-6",null,null,11,"Yüksek",null,"Okul -Aile Sorunları-7"]
[12,null,null,null,null,null,1,"İlkokul","İlkokul",null,null,null,null,"Boşanmış Aile-7","Maddi Sorun-6",null,null,13,"Yüksek",null,"Çocuk Kor.K.-8"]
[13,null,null,null,null,null,2,"İlkokul","?",null,null,null,null,"Anne Ölmüş-5",null,null,null,5,"Normal"]
[14,null,null,null,null,null,4,"İlkokul","İlkokul",null,null,null,null,"Okul -Aile Sorunları-7",null,null,null,7,"Normal"]
[15,null,null,null,null,null,3,"?","İlkokul",null,null,null,null,"Baba Ölmüş-5","Maddi Sorun-6",null,null,11,"Yüksek"]
[16,null,null,null,null,null,3,"İlkokul","İlkokul",null,null,null,null,"Boşanmış Aile-7","Maddi Sorun-6",null,null,13,"Yüksek"]
[17,null,null,null,null,null,3,"Ortaokul","Ortaokul",null,null,null,null,"Engelli Birey-7",null,null,null,7,"Normal"]
[18,null,null,null,null,null,3,"Ortaokul","İlkokul",null,null,null,null,"Engelli Birey-7","Maddi Sorun-6",null,null,11,"Yüksek"]
[19,null,null,null,null,null,3,"Lise","İlkokul",null,null,null,null,"Psikiyatrik Has.-8",null,null,null,8,"Normal"]
[20,null,null,null,null,null,null,null,null,null,null,null,null,"Psikiyatrik Has.-8","Bağımlılık-9","Antisosyal Dav.-9",null,24,"Çok Yüksek"]
[21,null,null,null,null,null,null,null,null,null,null,null,null,null,null,null,null,0,"Normal"]
[22,null,null,null,null,null,null,null,null,null,null,null,null,null,null,null,null,0,"Normal"]
[null,"Not : R.D. Çok Yüksek çıkan öğrenciler mutlaka takip altına alınmalıdır. Burada yazan bilgilerin gizli kalmasına özen gösterilmelidir."]
[1,"Boşanmış Aile :  Anne ve Babanın Mahkeme kararı ile boşanması. Risk Puanı: 7",null,null,null,null,null,null,null,null,null,null,null,null,null,null,"Rehber Öğretmen"]
[2,"Şuça İtilmiş : Kendi isteğiyle veya başkaları tarafından zorlanarak, yasadışı davranışlarda bulunan çocukları tanımlar.Risk Puanı:8"]
[3,"Kronik Hastalık : Diyabet-Şeker-Epilepsi, Kalp…kontrol altında tedavi gereken hastalıklar. Aile Bireyleri Dahil. Risk Puanı :7 "]
[4,"Maddi Sorunlar : Düzenli geliri olmayan aileler. Yardıma Muhtaç. Risk Puanı : 6"]
[5,"İstismar : Fiziksel, Duygusal, Cinsel İstismar ve İhmale Ugramış çocuklar. Risk Puanı : 8"]
[6,"Okul ve Aile Sorunları : Akademik Başarısızlık, Devamsızlık, Disiplin Sorun., Aile içi şiddet Risk Puanı : 7"]
[7,"Engelli Birey : Engelli Sağlık Raporu (Kay. Eğt. dahil) olan; Zihinsel, Bedensel, İşitme, Konuşma gibi. Aile Bireyleri dahil. Risk Puanı : 7"]
[8,"Antisosyal Davr.: Kendine-etrafına zarar veren, sigara içen, şiddete meyilli, kavga eden, kesici ve yaralayıcı aletler taşıyan, sürekli yalan söyleyen,öfkeli, acımasız davranışlar sergileyen. Risk Puanı: 9"]
[9,"Çocuk Koruma Kanunu : 5395 sayılı ç.k.k. Kapsamında olan bireyler. (Koruma-Bakım-Eğitim-Danışmanlık Tedbiri gibi) Risk Puanı : 7"]
[10,"Psikiatrik Hastalık : Depresyon, Ansksiyete, DEHB, OKB gibi ilaç tedavisi devam eden. Risk Puanı : 8"]
[11,"Bağımlılık : Tedavi gerektiren sigara, alkol, uyuşturucu gibi madde bağımlılığı. Aile bireyleri dahil. Risk Puanı : 9"]
[12,"Anne Ölmüş : Annenin ölmesi. Psikolojik desteğe ihtiyacı olan. Risk Puanı : 5"]
[13,"Baba Ölmüş : Babanın ölmesi. Psikolojik desteğe ihtiyacı olan. Olayı kabullenmiş bireyler 2. riski yoksa alınmayabilir. Risk Puanı : 5"]

{"sheet":"Seminer","index":7,"n_rows":32,"n_cols":10,"rows_kept":32,"cut":false,"hidden":false,"merged":[[0,0,0,7]]}
["\"Seminer-Sunum-Bilgilendirme-Faaliyet…vb\" Veri Çizelgesi"]
["Sıra","Yapılan Çalışmanın                          KONUSU","Tarih","Yer","Saati","Katılımcı Sayısı","Hedef Kitle","Açıklama                                 (Katılım Düzeyinin Degerlendirilmesi)"]
[1,"Akran Zorbalığı-Okulda Şiddetin Önlenmesi- Ödül ve Disiplin Yönet.",null,"8-B Sınıfı","09;30",29,"Öğrenci ","Çok İyi",null,"İyi"]
[2,"Akran Zorbalığı-Okulda Şiddetin Önlenmesi- Ödül ve Disiplin Yönet.",null,"7-C Sınıfı","10;00",19,"Öğrenci ","Çok İyi",null,"Çok İyi"]
[3,"Akran Zorbalığı-Okulda Şiddetin Önlenmesi- Ödül ve Disiplin Yönet.",null,"8-A Sınıfı","12;30",29,"Öğrenci ","Çok İyi",null,"Yeterli"]
[4,"Akran Zorbalığı-Okulda Şiddetin Önlenmesi- Ödül ve Disiplin Yönet.",null,"7-B Sınıfı","12;30",19,"Öğrenci ","Çok İyi"]
[5,"Akran Zorbalığı-Okulda Şiddetin Önlenmesi- Ödül ve Disiplin Yönet.",null,"7-A Sınıfı","09;00",19,"Öğrenci ","Çok İyi",null,"Öğrenci "]
[6,"Sigara ve Teknoloji Bağımlılığı",null,"7-B Sınıfı","12;00",19,"Öğrenci ","Çok İyi",null,"Veli"]
[7,"Sigara ve Teknoloji Bağımlılığı",null,"7-A Sınıfı","12;30",19,"Öğrenci ","Çok İyi",null,"Öğretmen"]
[8," İSTİSMAR",null,"Çok Amaçlı Salon","12;30","25                                      (8A,B Velileri)","Veli","Yeterli",null,"Diğer"]
[9,"Sigara ve Teknoloji Bağımlılığı",null,"7-A Sınıfı","09;00",20,"Öğrenci ","Çok İyi"]
[10,"Liseye Geçiş Sistemi(LGS)",null,"8-B Sınıfı","12;30",29,"Öğrenci ","Çok İyi",null,"09;00"]
[11,"Liseye Geçiş Sistemi(LGS)",null,"8-A Sınıfı","12;30",29,"Öğrenci ","Çok İyi",null,"09;30"]
[12,null,null,null,null,null,null,null,null,"10;00"]
[13,null,null,null,null,null,null,null,null,"10;30"]
[14,null,null,null,null,null,null,null,null,"11;00"]
[15,null,null,null,null,null,null,null,null,"11;30"]
[16,null,null,null,null,null,null,null,null,"12;00"]
[17,null,null,null,null,null,null,null,null,"12;30"]
[18,null,null,null,null,null,null,null,null,"13;00"]
[19,null,null,null,null,null,null,null,null,"13;30"]
[20,null,null,null,null,null,null,null,null,"14;00"]
[21,null,null,null,null,null,null,null,null,"14;30"]
[22]
[23]
[24]
[25]
[26]
[27]
[28]
[29]
[30]

{"sheet":"VAKA FORMU","index":8,"n_rows":24,"n_cols":6,"rows_kept":24,"cut":false,"hidden":false,"merged":[[0,0,0,5],[1,0,1,5],[3,1,3,5],[4,0,4,5],[5,0,5,2],[15,0,16,5],[18,0,18,5],[5,7,5,9],[5,3,5,4],[6,3,6,5],[7,0,7,2],[7,3,7,5],[19,0,19,5],[2,1,2,3],[2,4,2,5],[12,0,12,5],[13,0,13,5],[14,0,14,5],[9,0,9,2],[9,3,9,5],[10,0,10,2],[10,3,10,5],[11,0,11,2],[11,3,11,5],[6,0,6,2],[8,0,8,2],[8,3,8,5],[17,0,17,5]]}
["………………………………………. Ortaokulu/Lisesi"]
["Rehberlik Servisi VAKA Raporu"]
["Rapor Hazırlanma Tarihi",null,null,null,"  Saati:                                               Dosya No;    2015 - 1"]
["Vakanın İntikal Şekli      ","Okul Rehber Öğretmeninin  almış olduğu duyum. "]
["Rapor Hazırlananın KÜNYE BİLGİLERİ"]
["Adı ",null,null,null,null,"     Doğum Tarihi  :     "]
["Sınıfı ",null,null,"                     (Okul No;              )"]
["Okula Geliş Tarihi"]
["Adres"]
["Anne Baba Adı -Telefon"]
["Rapor Hazırlanma Nedeni",null,null,"istismar vakası"]
["Rapor Sonucu",null,null,"Okul Müdürüne Sevk Edildi"]
["u ÖZET; Olay-Durum-Vaka  t"]
[]
["u ANALİZ ; Değerlendirme-Gözlemler-Tespitler  t"]
[]
[]
[]
["u SONUÇ; Öneri –Yönlendirme  t"]
["Mağdur ………... acil görüşmeye alınıp, psikolojik destek verilmiş.. Olayla ilgili ayrıntılı RAPOR hazırlanıp, ilgili yerleri bilgilendirmesi için okul idaresine bilgi verilmiştir."]
[]
[null,null,null,null,null,"2015-12-29"]
[]
[null,null,null,null,null,"Rehber Öğretmen"]